{"text_format":"1","workbook":"xlsx","n_sheets":1,"sheets":["Report"],"not_rendered":{"charts":12,"images":18,"macros":1,"external_links":0,"defined_names":10,"comments":0,"pivot_tables":0},"unopened":[],"bounds":{"document_bytes":16777216,"sheet_cells":100000,"rows_first":2000,"rows_last":500,"rows_between":2000,"halvings":0,"cell_chars":16384,"cell_head_chars":4096},"cells_cut":0,"cells_raw":0,"read":"whole","date_system":"1900"}

{"sheet":"Report","index":0,"n_rows":806,"n_cols":64,"rows_kept":806,"cut":false,"hidden":false,"merged":[[6,3,6,31],[8,3,8,36],[10,3,10,36],[12,3,12,36],[14,3,14,36],[18,3,18,36],[20,3,20,36],[22,3,22,36],[16,3,16,37],[176,2,176,27],[249,2,249,27],[797,3,797,41],[798,3,798,41],[799,3,799,41],[800,3,800,41],[792,3,792,41],[793,3,793,41],[794,3,794,41],[795,3,795,41],[796,3,796,41],[785,1,785,2],[786,1,786,2],[787,1,787,2],[788,1,788,2],[789,1,789,2],[790,1,790,2],[791,1,791,2],[792,1,792,2],[793,1,793,2],[794,1,794,2],[14,40,14,41],[270,2,270,9],[802,3,802,41],[803,3,803,41],[804,3,804,41],[805,3,805,41],[802,1,802,2],[803,1,803,2],[804,1,804,2],[805,1,805,2],[769,3,769,41],[770,3,770,41],[771,3,771,41],[772,3,772,41],[773,3,773,41],[774,3,774,41],[775,3,775,41],[776,3,776,41],[777,3,777,41],[778,3,778,41],[779,3,779,41],[780,3,780,41],[781,3,781,41],[782,3,782,41],[783,3,783,41],[784,3,784,41],[785,3,785,41],[786,3,786,41],[787,3,787,41],[788,3,788,41],[789,3,789,41],[790,3,790,41],[791,3,791,41],[199,3,199,9],[795,1,795,2],[796,1,796,2],[797,1,797,2],[798,1,798,2],[799,1,799,2],[800,1,800,2],[801,1,801,2],[769,1,769,2],[770,1,770,2],[771,1,771,2],[772,1,772,2],[773,1,773,2],[774,1,774,2],[775,1,775,2],[776,1,776,2],[777,1,777,2],[778,1,778,2],[779,1,779,2],[780,1,780,2],[781,1,781,2],[782,1,782,2],[783,1,783,2],[784,1,784,2],[801,3,801,41],[601,2,601,34],[611,2,611,36],[564,1,564,41],[221,3,221,9],[219,3,219,9],[269,2,269,9],[506,13,506,41],[12,40,12,41],[282,2,282,9],[281,2,281,9],[277,2,277,9],[273,10,273,13],[280,10,280,13],[272,10,272,13],[277,10,277,13],[93,24,94,40],[211,15,211,41],[212,15,212,41],[213,15,213,41],[214,15,214,41],[215,15,215,41],[216,15,216,41],[217,15,217,41],[218,15,218,41],[219,15,219,41],[220,15,220,41],[221,15,221,41],[55,1,55,8],[95,24,96,40],[97,24,98,40],[99,24,100,40],[101,24,102,40],[97,1,98,23],[99,1,100,23],[101,1,102,23],[206,3,206,9],[265,1,265,40],[210,3,210,9],[280,2,280,9],[507,13,507,41],[508,13,508,41],[509,13,509,41],[510,13,510,41],[511,13,511,41],[512,13,512,41],[513,13,513,41],[514,13,514,41],[515,13,515,41],[516,13,516,41],[517,13,517,41],[304,2,304,28],[321,2,321,36],[313,2,313,38],[394,2,394,30],[404,2,404,33],[487,2,487,32],[503,1,503,41],[517,8,517,12],[510,2,510,7],[510,8,510,12],[438,7,438,9],[362,9,362,41],[363,9,363,41],[338,1,338,4],[336,9,336,41],[347,9,347,41],[335,5,335,8],[337,5,337,8],[345,1,345,4],[350,5,350,8],[351,5,351,8],[638,1,638,41],[210,10,210,14],[208,1,208,40],[224,1,224,41],[137,28,137,35],[222,15,222,41],[210,15,210,41],[193,15,193,41],[194,15,194,41],[195,15,195,41],[196,15,196,41],[197,15,197,41],[198,15,198,41],[199,15,199,41],[200,15,200,41],[201,15,201,41],[202,15,202,41],[203,15,203,41],[456,2,456,6],[139,36,139,40],[346,1,346,4],[221,10,221,14],[219,10,219,14],[212,3,212,9],[203,10,203,14],[211,10,211,14],[211,3,211,9],[283,2,283,9],[282,10,282,13],[217,10,217,14],[455,7,455,9],[515,2,515,7],[0,1,0,41],[89,1,91,41],[114,1,117,41],[103,1,104,23],[105,1,106,23],[107,1,108,23],[329,1,329,41],[337,1,337,4],[339,5,339,8],[346,5,346,8],[138,16,138,20],[202,3,202,9],[213,3,213,9],[204,3,204,9],[206,10,206,14],[268,2,268,9],[216,3,216,9],[216,10,216,14],[202,10,202,14],[50,1,50,8],[51,1,51,8],[52,1,52,8],[53,1,53,8],[54,1,54,8],[206,15,206,41],[196,3,196,9],[195,3,195,9],[136,36,136,40],[143,1,143,9],[53,22,53,29],[54,22,54,29],[278,2,278,9],[103,24,104,40],[105,24,106,40],[107,24,108,40],[93,1,94,23],[95,1,96,23],[764,38,764,40],[759,15,759,24],[759,25,759,27],[759,28,759,37],[759,38,759,40],[20,40,20,41],[218,10,218,14],[339,9,339,41],[346,9,346,41],[222,10,222,14],[268,10,268,13],[270,10,270,13],[269,10,269,13],[218,3,218,9],[271,10,271,13],[137,36,137,40],[138,8,138,15],[283,10,283,13],[278,10,278,13],[212,10,212,14],[273,2,273,9],[272,2,272,9],[205,3,205,9],[201,3,201,9],[55,22,55,29],[52,22,52,29],[336,1,336,4],[281,10,281,13],[213,10,213,14],[203,3,203,9],[204,15,204,41],[205,15,205,41],[757,2,757,11],[750,2,750,11],[750,12,750,14],[750,15,750,24],[674,1,674,41],[765,2,765,11],[765,12,765,14],[765,15,765,24],[765,25,765,27],[765,28,765,37],[765,38,765,40],[762,2,762,11],[761,2,761,11],[761,12,761,14],[758,2,758,11],[758,12,758,14],[758,15,758,24],[758,25,758,27],[758,28,758,37],[758,38,758,40],[761,28,761,37],[761,38,761,40],[761,15,761,24],[761,25,761,27],[760,28,760,37],[760,38,760,40],[762,12,762,14],[762,15,762,24],[762,25,762,27],[764,15,764,24],[764,25,764,27],[764,28,764,37],[757,28,757,37],[757,38,757,40],[759,2,759,11],[759,12,759,14],[760,2,760,11],[760,12,760,14],[760,15,760,24],[760,25,760,27],[568,2,568,11],[585,15,585,24],[585,25,585,27],[585,28,585,37],[585,38,585,40],[588,15,588,24],[584,25,584,27],[584,28,584,37],[573,15,573,24],[573,25,573,27],[573,28,573,37],[573,38,573,40],[570,25,570,27],[570,2,570,11],[649,13,649,41],[647,2,647,7],[647,13,647,41],[648,2,648,7],[648,8,648,12],[648,13,648,41],[571,25,571,27],[571,28,571,37],[571,38,571,40],[664,1,664,41],[753,12,753,14],[753,15,753,24],[753,25,753,27],[753,28,753,37],[753,38,753,40],[764,2,764,11],[764,12,764,14],[754,2,754,11],[754,12,754,14],[754,15,754,24],[754,25,754,27],[754,28,754,37],[754,38,754,40],[755,2,755,11],[755,12,755,14],[755,15,755,24],[755,25,755,27],[755,28,755,37],[755,38,755,40],[756,2,756,11],[756,12,756,14],[762,28,762,37],[762,38,762,40],[763,2,763,11],[763,12,763,14],[763,15,763,24],[763,25,763,27],[763,28,763,37],[763,38,763,40],[757,12,757,14],[757,15,757,24],[757,25,757,27],[748,2,748,11],[748,12,748,14],[748,15,748,24],[748,25,748,27],[748,28,748,37],[748,38,748,40],[749,2,749,11],[749,12,749,14],[749,15,749,24],[749,25,749,27],[749,28,749,37],[749,38,749,40],[750,25,750,27],[750,28,750,37],[750,38,750,40],[756,15,756,24],[756,25,756,27],[756,28,756,37],[756,38,756,40],[751,2,751,11],[751,12,751,14],[751,15,751,24],[751,25,751,27],[751,28,751,37],[751,38,751,40],[752,2,752,11],[752,12,752,14],[752,15,752,24],[752,25,752,27],[752,28,752,37],[752,38,752,40],[753,2,753,11],[690,8,690,12],[690,13,690,41],[687,13,687,41],[688,2,688,7],[688,8,688,12],[675,8,675,12],[685,2,685,7],[685,8,685,12],[685,13,685,41],[687,2,687,7],[688,13,688,41],[679,13,679,41],[680,2,680,7],[680,8,680,12],[747,2,747,11],[747,12,747,14],[747,15,747,24],[747,25,747,27],[747,28,747,37],[747,38,747,40],[746,2,746,11],[746,12,746,14],[746,15,746,24],[746,25,746,27],[746,28,746,37],[746,38,746,40],[695,1,712,41],[739,1,739,41],[676,13,676,41],[677,2,677,7],[677,8,677,12],[669,2,669,7],[679,8,679,12],[671,2,671,7],[671,8,671,12],[669,8,669,12],[671,13,671,41],[689,2,689,7],[689,8,689,12],[689,13,689,41],[681,2,681,7],[681,8,681,12],[681,13,681,41],[682,2,682,7],[682,8,682,12],[682,13,682,41],[678,13,678,41],[680,13,680,41],[675,2,675,7],[676,2,676,7],[741,2,741,11],[741,12,741,14],[741,15,741,24],[741,25,741,27],[741,28,741,37],[666,2,666,7],[687,8,687,12],[678,2,678,7],[678,8,678,12],[669,13,669,41],[684,1,684,41],[745,2,745,11],[745,12,745,14],[745,15,745,24],[745,25,745,27],[745,28,745,37],[745,38,745,40],[742,2,742,11],[742,12,742,14],[742,15,742,24],[742,25,742,27],[742,28,742,37],[742,38,742,40],[743,25,743,27],[743,28,743,37],[743,38,743,40],[675,13,675,41],[743,2,743,11],[743,12,743,14],[743,15,743,24],[686,8,686,12],[686,13,686,41],[741,38,741,40],[690,2,690,7],[517,2,517,7],[644,13,644,41],[519,1,519,41],[744,2,744,11],[744,12,744,14],[744,15,744,24],[744,25,744,27],[744,28,744,37],[744,38,744,40],[668,2,668,7],[693,1,693,41],[665,2,665,7],[665,8,665,12],[665,13,665,41],[659,13,659,41],[666,8,666,12],[666,13,666,41],[668,8,668,12],[667,2,667,7],[655,8,655,12],[566,2,566,11],[566,12,566,14],[649,2,649,7],[649,8,649,12],[570,12,570,14],[570,15,570,24],[571,15,571,24],[567,15,567,24],[567,25,567,27],[667,8,667,12],[668,13,668,41],[676,8,676,12],[214,10,214,14],[215,10,215,14],[220,3,220,9],[217,3,217,9],[201,10,201,14],[136,3,136,7],[205,10,205,14],[139,3,139,7],[136,16,136,20],[195,10,195,14],[138,23,138,27],[198,3,198,9],[645,1,645,41],[507,8,507,12],[507,2,507,7],[511,2,511,7],[511,8,511,12],[460,7,460,9],[220,10,220,14],[514,2,514,7],[457,7,457,9],[453,2,453,6],[456,7,456,9],[451,7,451,9],[449,1,449,41],[514,8,514,12],[506,8,506,12],[506,2,506,7],[566,15,566,24],[567,2,567,11],[567,12,567,14],[567,28,567,37],[51,9,51,21],[131,36,131,40],[51,30,51,40],[52,9,52,21],[52,30,52,40],[51,22,51,29],[196,10,196,14],[193,10,193,14],[194,10,194,14],[135,36,135,40],[132,23,132,27],[132,28,132,35],[128,28,128,35],[126,23,126,27],[129,23,129,27],[134,8,134,15],[128,23,128,27],[87,1,87,40],[131,8,131,15],[125,16,125,20],[126,16,126,20],[123,16,123,20],[124,8,124,15],[135,23,135,27],[53,30,53,40],[55,9,55,21],[55,30,55,40],[136,28,136,35],[136,23,136,27],[120,16,120,20],[22,40,22,41],[123,36,123,40],[123,8,123,15],[127,36,127,40],[125,36,125,40],[124,3,124,7],[125,3,125,7],[121,8,121,15],[122,8,122,15],[30,3,30,14],[30,15,30,16],[200,3,200,9],[194,3,194,9],[193,3,193,9],[50,30,50,40],[128,3,128,7],[132,16,132,20],[132,8,132,15],[131,3,131,7],[198,10,198,14],[137,16,137,20],[139,8,139,15],[197,3,197,9],[197,10,197,14],[199,10,199,14],[191,1,191,40],[137,23,137,27],[138,36,138,40],[139,28,139,35],[53,9,53,21],[160,1,165,41],[166,1,174,41],[268,26,268,41],[269,26,269,41],[58,1,58,40],[136,8,136,15],[2,40,2,41],[4,36,4,37],[6,40,6,41],[8,40,8,41],[135,16,135,20],[10,40,10,41],[127,16,127,20],[134,16,134,20],[134,36,134,40],[135,28,135,35],[133,3,133,7],[134,3,134,7],[128,8,128,15],[128,16,128,20],[133,8,133,15],[133,36,133,40],[18,40,18,41],[16,40,16,41],[35,1,39,41],[41,1,45,41],[120,3,120,7],[121,3,121,7],[130,36,130,40],[132,36,132,40],[134,23,134,27],[130,23,130,27],[127,3,127,7],[125,8,125,15],[134,28,134,35],[126,36,126,40],[122,23,122,27],[122,36,122,40],[120,28,120,35],[121,28,121,35],[122,28,122,35],[139,23,139,27],[138,3,138,7],[139,16,139,20],[123,3,123,7],[125,28,125,35],[204,10,204,14],[200,10,200,14],[133,23,133,27],[129,3,129,7],[130,3,130,7],[126,3,126,7],[137,8,137,15],[132,3,132,7],[133,16,133,20],[135,3,135,7],[135,8,135,15],[133,28,133,35],[124,36,124,40],[129,8,129,15],[137,3,137,7],[142,1,142,40],[126,8,126,15],[127,8,127,15],[121,36,121,40],[121,23,121,27],[54,9,54,21],[54,30,54,40],[128,36,128,40],[129,36,129,40],[131,28,131,35],[120,23,120,27],[129,16,129,20],[124,16,124,20],[122,3,122,7],[131,23,131,27],[127,23,127,27],[127,28,127,35],[130,8,130,15],[130,16,130,20],[125,23,125,27],[126,28,126,35],[336,5,336,8],[122,16,122,20],[120,8,120,15],[129,28,129,35],[123,23,123,27],[123,28,123,35],[121,16,121,20],[271,2,271,9],[267,10,267,13],[215,3,215,9],[267,2,267,9],[279,10,279,13],[279,2,279,9],[138,28,138,35],[222,3,222,9],[285,1,285,41],[426,23,426,41],[423,10,423,22],[567,38,567,40],[512,2,512,7],[512,8,512,12],[513,2,513,7],[513,8,513,12],[508,2,508,7],[508,8,508,12],[463,1,463,41],[566,25,566,27],[566,28,566,37],[566,38,566,40],[461,7,461,9],[460,2,460,6],[275,1,275,40],[437,2,437,6],[438,2,438,6],[427,7,427,9],[430,2,430,6],[426,7,426,9],[332,5,332,8],[333,1,333,4],[334,1,334,4],[335,1,335,4],[421,7,421,9],[333,9,333,41],[334,9,334,41],[335,9,335,41],[337,9,337,41],[333,5,333,8],[338,9,338,41],[446,7,446,9],[420,2,420,6],[416,1,416,41],[427,2,427,6],[418,7,418,9],[424,7,424,9],[363,5,363,8],[362,5,362,8],[364,5,364,8],[440,2,440,6],[425,7,425,9],[423,2,423,6],[442,2,442,6],[443,7,443,9],[443,2,443,6],[441,7,441,9],[442,7,442,9],[439,2,439,6],[439,7,439,9],[383,1,392,41],[430,7,430,9],[426,2,426,6],[444,7,444,9],[445,7,445,9],[440,7,440,9],[424,10,424,22],[425,10,425,22],[430,10,430,22],[429,10,429,22],[428,10,428,22],[427,10,427,22],[421,2,421,6],[458,7,458,9],[365,5,365,8],[349,9,349,41],[428,7,428,9],[455,2,455,6],[437,7,437,9],[342,1,342,41],[345,5,345,8],[345,9,345,41],[351,9,351,41],[352,9,352,41],[353,9,353,41],[348,1,348,4],[349,1,349,4],[368,1,368,9],[360,1,360,4],[360,5,360,8],[360,9,360,41],[361,1,361,4],[362,1,362,4],[363,1,363,4],[364,1,364,4],[365,1,365,4],[435,1,435,41],[447,7,447,9],[446,2,446,6],[447,2,447,6],[419,10,419,22],[420,10,420,22],[421,10,421,22],[422,10,422,22],[428,23,428,41],[30,17,30,19],[50,22,50,29],[112,1,112,41],[214,3,214,9],[130,28,130,35],[131,16,131,20],[124,23,124,27],[124,28,124,35],[120,36,120,40],[50,9,50,21],[445,2,445,6],[577,15,577,24],[577,25,577,27],[577,28,577,37],[577,38,577,40],[31,1,33,41],[355,9,355,41],[419,2,419,6],[332,9,332,41],[332,1,332,4],[441,2,441,6],[348,5,348,8],[349,5,349,8],[420,7,420,9],[516,2,516,7],[516,8,516,12],[570,38,570,40],[571,2,571,11],[338,5,338,8],[339,1,339,4],[347,1,347,4],[509,2,509,7],[661,13,661,41],[660,13,660,41],[661,2,661,7],[661,8,661,12],[651,8,651,12],[644,8,644,12],[656,8,656,12],[643,8,643,12],[643,13,643,41],[644,2,644,7],[584,15,584,24],[586,2,586,11],[658,2,658,7],[656,13,656,41],[657,2,657,7],[657,8,657,12],[651,2,651,7],[651,13,651,41],[655,2,655,7],[660,8,660,12],[658,8,658,12],[654,1,654,41],[641,13,641,41],[586,15,586,24],[647,8,647,12],[642,2,642,7],[642,8,642,12],[642,13,642,41],[646,2,646,7],[646,8,646,12],[646,13,646,41],[593,2,593,37],[509,8,509,12],[478,1,485,41],[428,2,428,6],[422,2,422,6],[425,2,425,6],[451,2,451,6],[458,2,458,6],[422,7,422,9],[423,7,423,9],[584,38,584,40],[586,28,586,37],[586,38,586,40],[587,2,587,11],[587,12,587,14],[587,15,587,24],[580,15,580,24],[580,25,580,27],[580,28,580,37],[580,38,580,40],[444,2,444,6],[461,2,461,6],[459,7,459,9],[459,2,459,6],[457,2,457,6],[454,2,454,6],[454,7,454,9],[453,7,453,9],[452,2,452,6],[452,7,452,9],[424,2,424,6],[429,7,429,9],[429,2,429,6],[579,12,579,14],[579,15,579,24],[581,2,581,11],[581,12,581,14],[581,15,581,24],[581,25,581,27],[581,28,581,37],[581,38,581,40],[578,15,578,24],[578,25,578,27],[578,12,578,14],[579,28,579,37],[579,38,579,40],[582,12,582,14],[587,28,587,37],[587,38,587,40],[585,12,585,14],[583,12,583,14],[583,15,583,24],[583,25,583,27],[583,28,583,37],[583,38,583,40],[584,2,584,11],[584,12,584,14],[582,15,582,24],[582,25,582,27],[582,28,582,37],[582,2,582,11],[586,12,586,14],[515,8,515,12],[576,12,576,14],[576,15,576,24],[576,25,576,27],[582,38,582,40],[583,2,583,11],[579,25,579,27],[585,2,585,11],[587,25,587,27],[580,2,580,11],[580,12,580,14],[568,12,568,14],[568,15,568,24],[568,25,568,27],[586,25,586,27],[572,2,572,11],[572,12,572,14],[572,15,572,24],[576,28,576,37],[569,2,569,11],[569,12,569,14],[569,15,569,24],[569,25,569,27],[569,28,569,37],[569,38,569,40],[575,2,575,11],[575,12,575,14],[575,15,575,24],[575,25,575,27],[575,28,575,37],[577,2,577,11],[579,2,579,11],[568,28,568,37],[568,38,568,40],[660,2,660,7],[639,13,639,41],[640,2,640,7],[640,8,640,12],[640,13,640,41],[641,2,641,7],[590,12,590,14],[590,15,590,24],[590,25,590,27],[658,13,658,41],[659,2,659,7],[590,28,590,37],[590,38,590,40],[588,2,588,11],[588,12,588,14],[588,25,588,27],[588,28,588,37],[588,38,588,40],[589,2,589,11],[589,12,589,14],[589,15,589,24],[589,25,589,27],[589,28,589,37],[589,38,589,40],[659,8,659,12],[590,2,590,11],[650,2,650,7],[652,2,652,7],[652,8,652,12],[571,12,571,14],[575,38,575,40],[576,2,576,11],[576,38,576,40],[572,25,572,27],[572,28,572,37],[570,28,570,37],[574,2,574,11],[574,12,574,14],[574,15,574,24],[574,25,574,27],[574,28,574,37],[574,38,574,40],[572,38,572,40],[573,12,573,14],[573,2,573,11],[578,28,578,37],[578,38,578,40],[578,2,578,11],[577,12,577,14],[270,26,270,41],[271,26,271,41]],"merged_total":1126,"flags":["merged_cut"]}
[null,"Index"]
[]
[null,null,null,"◎V.A.R.H.O.P.",null,null,null,null,null,null,null,null,null,null,null,null,null,null,null," "," "," "," "," "," "," "," ",null,null,null,null,null,null,null,null,null,null,null,"_","_","04"]
[]
[null,null,null,"◎General Stress Reactivity",null,null,null,null,null,null,null,null,null,null,null,null,null,null,null,null,null,null,null,null,null,null," ",null,"_","_","_","_","__","_","_",null,"06"]
[]
[null,null,null,"◎Voltammetric Spinal Signature Reactivity",null,null,null,null,null,null,null,null,null,null,null,null,null,null,null,null,null,null,null,null,null,null,null,null,null,null,null,null,null,null,null,null,null,null,"_","_","06"]
[]
[null,null,null,"◎Voltammetric Meridian Signature Reactivity",null,null,null,null,null,null,null,null,null,null,null,null,null,null,null,null,null,null,null,null,null,null,null,null,null,null,null,null,null,null,null,null,null,null,"_","_","09"]
[]
[null,null,null,"◎Voltammetric Digestive Signature Reactivity",null,null,null,null,null,null,null,null,null,null,null,null,null,null,null,null,null,null,null,null,null,null,null,null,null,null,null,null,null,null,null,null,null,null,"_","_","12"]
[]
[null,null,null,"◎Voltammetric Nutritional Signature Reactivity",null,null,null,null,null,null,null,null,null,null,null,null,null,null,null,null,null,null,null,null,null,null,null,null,null,null,null,null,null,null,null,null,null,null,"_","_","16"]
[]
[null,null,null,"◎Voltammetric Hormonal Signature Reactivity",null,null,null,null,null,null,null,null,null,null,null,null,null,null,null,null,null,null,null,null,null,null,null,null,null,null,null,null,null,null,null,null,null,null,"_","_","20"]
[]
[null,null,null,"◎Voltammetric Food and Environmental Signature Reactivity",null,null,null,null,null,null,null,null,null,null,null,null,null,null,null,null,null,null,null,null,null,null,null,null,null,null,null,null,null,null,null,null,null,null,"_","_","22"]
[]
[null,null,null,"◎Voltammetric Homeotoxicology Signature",null,null,null,null,null,null,null,null,null,null,null,null,null,null,null,null,null,null,null,null,null,null,null,null,null,null,null,null,null,null,null,null,null,null,"_","_","24"]
[]
[null,null,null,"◎Voltammetric Emotional Signature Reactivity",null,null,null,null,null,null,null,null,null,null,null,null,null,null,null,null,null,null,null,null,null,null,null,null,null,null,null,null,null,null,null,null,null,null,"_","_","31"]
[]
[null,null,null,"◎Reference list",null,null,null,null,null,null,null,null,null,null,null,null,null,null,null,null,null,null,null,null,null,null,null,null,null,null,null,null,null,null,null,null,null,null,"_","_","32"]
[]
[null,null,null,null,null,null,null,null,null,null,null,null,null,null,null,null,null,null,null,null," "]
[]
[null,null,"Reading tips of this report:"]
[]
[]
[]
[]
[null,"Our biofeedback device is designed to show aberrations in the body's electrical reactivity that are client specific, using their own unique biofeedback baselines of reactivity response.  We first measure the client's electrical range of response through our calibration process which establishes their \"baseline\" or normal range of electrical reactivity response. Next, the device presents the client with 11,000 very specific voltammetric signatures and feeds back numerical data compared and calculated against the client's original baseline or normal range of biofeedback reactivity response.   "]
[]
[]
[]
[null,"Reactivity measures which exceed a value of 100 indicated by: n are considered to be strong reactions (possibly indicating either an acute stress response, or even a positive response to the signature).  This form of hyperreactivity feedback displayed through our device is to be considered as a possible area of interest.   Values are not quantitative in measure.  The device and this report are NOT able to represent an amount, level, degree, state, stage or condition of any kind.  It can not discern the difference between difficiency or toxicity, allergy or sensitivity.  Therefore, this report is not diagnostic and makes no claims of diagnosis. By detecting voltammetric signature aberrations in reactivity and understanding the general information which may associate to the voltammetric signatures measured,  we are presented with an opportunity to better understand our own unique reactivity profiles through education and subjective interpretation. This information should not be used to change, mitigate, imply or alter any treatment, dietary, or lifestyle habbits, patterns or choices without consulting with and being suprivesed by a licensed health care professional.  "]
[]
[]
[]
[]
[]
[null,"Reactivity measures beneath a value of 50 indicated by: n are considered to be weaker reactions (possibly indicating either a more chronic stress response, or even a less significant response to the signature.). This form of hypoactivity feedback displayed through our device is to be considered as a possible area of interest. Values are not quantitative in measure.  The device and this report are NOT able to represent an amount, level, degree, state, stage or condition of any kind.  It can not discern the difference between difficiency or toxicity, allergy or sensitivity.  Therefore, this report is not diagnostic and makes no claims of diagnosis. By detecting voltammetric signature aberrations in reactivity and understanding the general information which may associate to the voltammetric signatures measured,  we are presented with an opportunity to better understand our own unique reactivity profiles through education and subjective interpretation. This information should not be used to change, mitigate imply or alter any treatment, dietary, or lifestyle habbits, patterns or choices without consulting with and being suprivesed by a licensed health care professional.  "]
[]
[]
[]
[]
[]
[]
[]
[]
[null,"Name：",null,null,null,null,null,null,null,null,null,null,null,null,null,null,null,null,null,null,null,null,"Tel (C)"]
[null,"Place of Birth：",null,null,null,null,null,null,null,null,null,null,null,null,null,null,null,null,null,null,null,null,"Tel (H)"]
[null,"Date of Birth："]
[null,"Gender"]
[null,"E-mail："]
[null,"Testing Date：",null,null,null,null,null,null,null,null,null,null,null,null,null,null,null,null,null,null,null,null,"Report Date :"]
[]
[]
[null,"V.A.R.H.O.P."]
[]
[]
[]
[]
[]
[]
[]
[]
[]
[]
[]
[]
[]
[]
[]
[]
[]
[]
[]
[]
[]
[]
[]
[]
[]
[]
[]
[]
[null,"V.A.R.H.O.P."]
[]
[null,"V.A.R.H.O.P  values are for practitioner reference only"]
[]
[]
[]
[null,"Description",null,null,null,null,null,null,null,null,null,null,null,null,null,null,null,null,null,null,null,null,null,null,"Value"]
[]
[null,"V:   Voltage",null,null,null,null,null,null,null,null,null,null,null,null,null,null,null,null,null,null,null,null,null,null,73]
[]
[null,"A：Amperage",null,null,null,null,null,null,null,null,null,null,null,null,null,null,null,null,null,null,null,null,null,null,98]
[]
[null,"R：Resistance",null,null,null,null,null,null,null,null,null,null,null,null,null,null,null,null,null,null,null,null,null,null,96]
[]
[null,"H：Hydration",null,null,null,null,null,null,null,null,null,null,null,null,null,null,null,null,null,null,null,null,null,null,68]
[]
[null,"O：Oxidation",null,null,null,null,null,null,null,null,null,null,null,null,null,null,null,null,null,null,null,null,null,null,86]
[]
[null,"P：Proton Pressure",null,null,null,null,null,null,null,null,null,null,null,null,null,null,null,null,null,null,null,null,null,null,71]
[]
[null,"Cellular vitality index",null,null,null,null,null,null,null,null,null,null,null,null,null,null,null,null,null,null,null,null,null,null,8]
[]
[]
[]
[]
[null,"General Stress Reactivity："]
[]
[null,"Each of the 38 potential stress profile categories offers a general overview of possible areas of concern.  They do not indicate or diagnose disease but rather offer a hint towards understanding the root causes of symptom related stress patterns which may be directly or indirectly involved with symptoms experienced."]
[]
[]
[]
[]
[]
[null,null,null,"NO.",null,null,null,null,"Item",null,null,null,null,null,null,null,"Value",null,null,null,null,null,null,"NO.",null,null,null,null,"Item",null,null,null,null,null,null,null,"Value"]
[null,null,null,1,null,null,null,null,"Inflammation",null,null,null,null,null,null,null,{"$error":"#REF!"},null,null,null,null,null,null,20,null,null,null,null,"Environmental",null,null,null,null,null,null,null,{"$error":"#REF!"}]
[null,null,null,2,null,null,null,null,"Blood",null,null,null,null,null,null,null,{"$error":"#REF!"},null,null,null,null,null,null,21,null,null,null,null,"Allergy",null,null,null,null,null,null,null,{"$error":"#REF!"}]
[null,null,null,3,null,null,null,null,"Stress",null,null,null,null,null,null,null,{"$error":"#REF!"},null,null,null,null,null,null,22,null,null,null,null,"Circulation",null,null,null,null,null,null,null,{"$error":"#REF!"}]
[null,null,null,4,null,null,null,null,"Hypoadrenia",null,null,null,null,null,null,null,{"$error":"#REF!"},null,null,null,null,null,null,23,null,null,null,null,"Immune System",null,null,null,null,null,null,null,{"$error":"#REF!"}]
[null,null,null,5,null,null,null,null,"Emotional",null,null,null,null,null,null,null,{"$error":"#REF!"},null,null,null,null,null,null,24,null,null,null,null,"Radiation",null,null,null,null,null,null,null,{"$error":"#REF!"}]
[null,null,null,6,null,null,null,null,"Infection",null,null,null,null,null,null,null,{"$error":"#REF!"},null,null,null,null,null,null,25,null,null,null,null,"Bacteria",null,null,null,null,null,null,null,{"$error":"#REF!"}]
[null,null,null,7,null,null,null,null,"Toxicity",null,null,null,null,null,null,null,{"$error":"#REF!"},null,null,null,null,null,null,26,null,null,null,null,"Fungus",null,null,null,null,null,null,null,{"$error":"#REF!"}]
[null,null,null,8,null,null,null,null,"Trauma",null,null,null,null,null,null,null,{"$error":"#REF!"},null,null,null,null,null,null,27,null,null,null,null,"Virus",null,null,null,null,null,null,null,{"$error":"#REF!"}]
[null,null,null,9,null,null,null,null,"Inherited",null,null,null,null,null,null,null,{"$error":"#REF!"},null,null,null,null,null,null,28,null,null,null,null,"Parasites",null,null,null,null,null,null,null,{"$error":"#REF!"}]
[null,null,null,10,null,null,null,null,"Vit.Def Or Excess",null,null,null,null,null,null,null,{"$error":"#REF!"},null,null,null,null,null,null,29,null,null,null,null,"Ameba",null,null,null,null,null,null,null,{"$error":"#REF!"}]
[null,null,null,11,null,null,null,null,"Cardiovascular",null,null,null,null,null,null,null,{"$error":"#REF!"},null,null,null,null,null,null,30,null,null,null,null,"Food Poisoning",null,null,null,null,null,null,null,{"$error":"#REF!"}]
[null,null,null,12,null,null,null,null,"Hormonal",null,null,null,null,null,null,null,{"$error":"#REF!"},null,null,null,null,null,null,31,null,null,null,null,"Sugar Regulation",null,null,null,null,null,null,null,{"$error":"#REF!"}]
[null,null,null,13,null,null,null,null,"Lymphatic",null,null,null,null,null,null,null,{"$error":"#REF!"},null,null,null,null,null,null,32,null,null,null,null,"Neurological",null,null,null,null,null,null,null,{"$error":"#REF!"}]
[null,null,null,14,null,null,null,null,"Liver",null,null,null,null,null,null,null,{"$error":"#REF!"},null,null,null,null,null,null,33,null,null,null,null,"Sensory",null,null,null,null,null,null,null,{"$error":"#REF!"}]
[null,null,null,15,null,null,null,null,"Kidney",null,null,null,null,null,null,null,{"$error":"#REF!"},null,null,null,null,null,null,34,null,null,null,null,"Cholesterol",null,null,null,null,null,null,null,{"$error":"#REF!"}]
[null,null,null,16,null,null,null,null,"Digestive",null,null,null,null,null,null,null,{"$error":"#REF!"},null,null,null,null,null,null,35,null,null,null,null,"Respiratory",null,null,null,null,null,null,null,{"$error":"#REF!"}]
[null,null,null,17,null,null,null,null,"Connective Tissue",null,null,null,null,null,null,null,{"$error":"#REF!"},null,null,null,null,null,null,36,null,null,null,null,"Oxidation",null,null,null,null,null,null,null,{"$error":"#REF!"}]
[null,null,null,18,null,null,null,null,"Bone",null,null,null,null,null,null,null,{"$error":"#REF!"},null,null,null,null,null,null,37,null,null,null,null,"Hydration",null,null,null,null,null,null,null,{"$error":"#REF!"}]
[null,null,null,19,null,null,null,null,"Water Acid Alk",null,null,null,null,null,null,null,{"$error":"#REF!"},null,null,null,null,null,null,38,null,null,null,null,"Cognition",null,null,null,null,null,null,null,{"$error":"#REF!"}]
[]
[]
[null,"Voltammetric Spinal Signature Reactivity"]
[null,null,null,null,null,null,null,null,null,null,null,null,null,null,null,null,null,null,null,null,null,null,null,null,null,null,null,null,null,null,null,null,null,null,null,null,null,null,null,null,null,null,null,null,null,null,null,null,null,null,null,null,null,null,null,"C1",{"$f":"K195","v":76},50,100,null,"Gall bladder ",{"$f":"K269","v":91},50,100]
[null,null,null,null,null,null,null,null,null,null,null,null,null,null,null,null,null,null,null,null,null,null,null,null,null,null,null,null,null,null,null,null,null,null,null,null,null,null,null,null,null,null,null,null,null,null,null,null,null,null,null,null,null,null,null,"C2",{"$f":"K196","v":106},50,100,null,"Liver",{"$f":"K270","v":68},50,100]
[null,null,null,null,null,null,null,null,null,null,null,null,null,null,null,null,null,null,null,null,null,null,null,null,null,null,null,null,null,null,null,null,null,null,null,null,null,null,null,null,null,null,null,null,null,null,null,null,null,null,null,null,null,null,null,"C3",99,50,100,null,"Lung",{"$f":"K271","v":95},50,100]
[null,null,null,null,null,null,null,null,null,null,null,null,null,null,null,null,null,null,null,null,null,null,null,null,null,null,null,null,null,null,null,null,null,null,null,null,null,null,null,null,null,null,null,null,null,null,null,null,null,null,null,null,null,null,null,"C4",49,50,100,null,"Large Intestine ",{"$f":"K272","v":76},50,100]
[null,null,null,null,null,null,null,null,null,null,null,null,null,null,null,null,null,null,null,null,null,null,null,null,null,null,null,null,null,null,null,null,null,null,null,null,null,null,null,null,null,null,null,null,null,null,null,null,null,null,null,null,null,null,null,"C5",65,50,100,null,"Stomach",77,50,100]
[null,null,null,null,null,null,null,null,null,null,null,null,null,null,null,null,null,null,null,null,null,null,null,null,null,null,null,null,null,null,null,null,null,null,null,null,null,null,null,null,null,null,null,null,null,null,null,null,null,null,null,null,null,null,null,"C6",{"$f":"K200","v":112},50,100,null,"Spleen ",87,50,100]
[null,null,null,null,null,null,null,null,null,null,null,null,null,null,null,null,null,null,null,null,null,null,null,null,null,null,null,null,null,null,null,null,null,null,null,null,null,null,null,null,null,null,null,null,null,null,null,null,null,null,null,null,null,null,null,"C7",115,50,100,null,"Heart",{"$f":"K279","v":55},50,100]
[null,null,null,null,null,null,null,null,null,null,null,null,null,null,null,null,null,null,null,null,null,null,null,null,null,null,null,null,null,null,null,null,null,null,null,null,null,null,null,null,null,null,null,null,null,null,null,null,null,null,null,null,null,null,null,"T1",101,50,100,null,"Small Intestine ",67,50,100]
[null,null,null,null,null,null,null,null,null,null,null,null,null,null,null,null,null,null,null,null,null,null,null,null,null,null,null,null,null,null,null,null,null,null,null,null,null,null,null,null,null,null,null,null,null,null,null,null,null,null,null,null,null,null,null,"T2",61,50,100,null,"Bladder",110,50,100]
[null,null,null,null,null,null,null,null,null,null,null,null,null,null,null,null,null,null,null,null,null,null,null,null,null,null,null,null,null,null,null,null,null,null,null,null,null,null,null,null,null,null,null,null,null,null,null,null,null,null,null,null,null,null,null,"T3",54,50,100,null,"Kidney",73,50,100]
[null,null,null,null,null,null,null,null,null,null,null,null,null,null,null,null,null,null,null,null,null,null,null,null,null,null,null,null,null,null,null,null,null,null,null,null,null,null,null,null,null,null,null,null,null,null,null,null,null,null,null,null,null,null,null,"T4",93,50,100,null,"Circulation",91,50,100]
[null,null,null,null,null,null,null,null,null,null,null,null,null,null,null,null,null,null,null,null,null,null,null,null,null,null,null,null,null,null,null,null,null,null,null,null,null,null,null,null,null,null,null,null,null,null,null,null,null,null,null,null,null,null,null,"T5",64,50,100,null,"Gland Meridian ",62,50,100]
[null,null,null,null,null,null,null,null,null,null,null,null,null,null,null,null,null,null,null,null,null,null,null,null,null,null,null,null,null,null,null,null,null,null,null,null,null,null,null,null,null,null,null,null,null,null,null,null,null,null,null,null,null,null,null,"T6",63,50,100]
[null,null,null,null,null,null,null,null,null,null,null,null,null,null,null,null,null,null,null,null,null,null,null,null,null,null,null,null,null,null,null,null,null,null,null,null,null,null,null,null,null,null,null,null,null,null,null,null,null,null,null,null,null,null,null,"T7",{"$f":"K212","v":73},50,100]
[null,null,null,null,null,null,null,null,null,null,null,null,null,null,null,null,null,null,null,null,null,null,null,null,null,null,null,null,null,null,null,null,null,null,null,null,null,null,null,null,null,null,null,null,null,null,null,null,null,null,null,null,null,null,null,"T8",45,50,100]
[null,null,null,null,null,null,null,null,null,null,null,null,null,null,null,null,null,null,null,null,null,null,null,null,null,null,null,null,null,null,null,null,null,null,null,null,null,null,null,null,null,null,null,null,null,null,null,null,null,null,null,null,null,null,null,"T9",66,50,100]
[null,null,null,null,null,null,null,null,null,null,null,null,null,null,null,null,null,null,null,null,null,null,null,null,null,null,null,null,null,null,null,null,null,null,null,null,null,null,null,null,null,null,null,null,null,null,null,null,null,null,null,null,null,null,null,"T10",74,50,100]
[null,"The spine is one of the most important physical structures of the body. Spinal nerves are controlled by the brain and distribute information from the brain through the spine, regulating the body's sensory and motor function through the central nervous system (CNS). Through the autonomic nervous system (ANS) the spine also supports many glands of the body, as well as cardiac, and smooth muscle (1, p 137, p156-65).",null,null,null,null,null,null,null,null,null,null,null,null,null,null,null,null,null,null,null,null,null,null,null,null,null,null,null,null,null,null,null,null,null,null,null,null,null,null,null,null,null,null,null,null,null,null,null,null,null,null,null,null,null,"T11",73,50,100]
[null,null,null,null,null,null,null,null,null,null,null,null,null,null,null,null,null,null,null,null,null,null,null,null,null,null,null,null,null,null,null,null,null,null,null,null,null,null,null,null,null,null,null,null,null,null,null,null,null,null,null,null,null,null,null,"T12",72,50,100]
[null,null,null,null,null,null,null,null,null,null,null,null,null,null,null,null,null,null,null,null,null,null,null,null,null,null,null,null,null,null,null,null,null,null,null,null,null,null,null,null,null,null,null,null,null,null,null,null,null,null,null,null,null,null,null,"L1",{"$f":"K218","v":69},50,100]
[null,null,null,null,null,null,null,null,null,null,null,null,null,null,null,null,null,null,null,null,null,null,null,null,null,null,null,null,null,null,null,null,null,null,null,null,null,null,null,null,null,null,null,null,null,null,null,null,null,null,null,null,null,null,null,"L2",58,50,100]
[null,null,null,null,null,null,null,null,null,null,null,null,null,null,null,null,null,null,null,null,null,null,null,null,null,null,null,null,null,null,null,null,null,null,null,null,null,null,null,null,null,null,null,null,null,null,null,null,null,null,null,null,null,null,null,"L3",55,50,100]
[null,null,null,null,null,null,null,null,null,null,null,null,null,null,null,null,null,null,null,null,null,null,null,null,null,null,null,null,null,null,null,null,null,null,null,null,null,null,null,null,null,null,null,null,null,null,null,null,null,null,null,null,null,null,null,"L4",58,50,100]
[null,"While our device does not provide a quantitative measure and is not diagnostic, by detecting voltammetric signature abreactions in reactivity and understanding the general information which may associate to the voltammetric signatures measured,  we are presented with an opportunity to better understand our own unique reactivity profiles through education and subjective interpretation.This information should not be used to change, mitigate imply or alter any treatment, dietary, or lifestyle habbits, patterns or choices without consulting with and being suprivesed by a licensed health care professional. ",null,null,null,null,null,null,null,null,null,null,null,null,null,null,null,null,null,null,null,null,null,null,null,null,null,null,null,null,null,null,null,null,null,null,null,null,null,null,null,null,null,null,null,null,null,null,null,null,null,null,null,null,null,"L5",70,50,100]
[null,null,null,null,null,null,null,null,null,null,null,null,null,null,null,null,null,null,null,null,null,null,null,null,null,null,null,null,null,null,null,null,null,null,null,null,null,null,null,null,null,null,null,null,null,null,null,null,null,null,null,null,null,null,null,"SACRAL",63,50,100]
[]
[]
[]
[]
[]
[]
[]
[]
[null,null,"Voltammetric Spinal Signature Reactivity Graph"]
[]
[]
[]
[]
[]
[]
[]
[]
[]
[]
[]
[]
[]
[]
[null,"Voltammetric Spinal Signature Reactivity"]
[]
[null,null,null,"Spinal Level",null,null,null,null,null,null,"Value",null,null,null,null,"General Spinal Information"]
[null,null,null,"C1 ",null,null,null,null,null,null,76,null,null,null,null,"Imbalances can be associated with dysfunction of all LOCAL bony, muscular, vascular, fascial, and neurological structures (2, sections 4,5 &7). "]
[null,null,null,"C2 ",null,null,null,null,null,null,106,null,null,null,null,"Imbalances can be associated with dysfunction of sensation to the head & neck (3, p324) as well as all LOCAL bony, muscular, vascular, fascial, and neurological structures (2, sections 4,5 &7)."]
[null,null,null,"C3 ",null,null,null,null,null,null,99,null,null,null,null,"Imbalances can be associated with dysfunction of the shoulder, breathing (3, p325-7), sensation to the neck (3, p324) as well as all LOCAL bony, muscular, vascular, fascial, and neurological structures (2, sections 4,5 &7)."]
[null,null,null,"C4 ",null,null,null,null,null,null,49,null,null,null,null,"Imbalances can be associated with dysfunction of the shoulder, breathing (3, p325-7), sensation to the chest, upper back, and shoulders (3, p324) as well as all LOCAL bony, muscular, vascular, fascial, and neurological structures (2, sections 4,5 &7)."]
[null,null,null,"C5 ",null,null,null,null,null,null,65,null,null,null,null,"Imbalances can be associated with dysfunction of the shoulder, elbow, wrist and hand, breathing (2, p325-7), sensation to the shoulders and arms (2, p324), as well as  all LOCAL bony, muscular, vascular, fascial, and neurological structures (2, sections 4,5 &7)."]
[null,null,null,"C6 ",null,null,null,null,null,null,112,null,null,null,null,"Imbalances can be associated with dysfunction of the shoulder, elbow, wrist, and hand (3, p325-7), sensation to the arms (3, p324) as well as all local bony, muscular, vascular, fascial, and neurological structures (2, sections 4,5 &7)."]
[null,null,null,"C7 ",null,null,null,null,null,null,115,null,null,null,null,"Imbalances can be associated with dysfunction of the shoulder, elbow, wrist, and hand (3, p325-7), altered sensation to the hands (3, p324), as well as all LOCAL bony, muscular, vascular, fascial, and neurological structures (2, sections 4,5 &7)."]
[null,null,null,"T1 ",null,null,null,null,null,null,101,null,null,null,null,"Imbalances can be associated with dysfunction of the shoulder, elbow, wrist, and hand (3, p325-7,) sensation to the arms (3, p324), pupil, lungs (3, p238 CA), salivation, tears (3, p240) as well as all local bony, muscular, vascular, fascial, and neurological structures (2, sections 4,5 &7)."]
[null,null,null,"T2 ",null,null,null,null,null,null,61,null,null,null,null,"Imbalances can be associated with dysfunction of sensation to the chest and back (3, p324), heart rate (3, p238), as well as all LOCAL bony, muscular, vascular, fascial, and neurological structures (2, sections 4,5 &7)."]
[null,null,null,"T3 ",null,null,null,null,null,null,54,null,null,null,null,"Imbalances can be associated with dysfunction of sensation to the chest and back (3, p324), heart rate (3, p238), as well as all LOCAL bony, muscular, vascular, fascial, and neurological structures (2, sections 4,5 &7)."]
[null,null,null,"T4 ",null,null,null,null,null,null,93,null,null,null,null,"Imbalances can be associated with dysfunction of sensation to the chest and back (2, p324), heart rate (2, p238), as well as all LOCALl bony, muscular, vascular, fascial, and neurological structures (2, sections 4,5 &7)."]
[null,null,null,"T5 ",null,null,null,null,null,null,64,null,null,null,null,"Imbalances can be associated with dysfunction of sensation to the chest and back (3, p324), sweating (3, p240), as well as all LOCAL bony, muscular, vascular, fascial, and neurological structures (2, sections 4,5 &7)."]
[null,null,null,"T6 ",null,null,null,null,null,null,63,null,null,null,null,"Imbalances can be associated with dysfunction of sensation to the chest and back (3, p324), stomach, pancreas, liver, gallbladder, hair follicles (3, p240),  as well as all LOCAL bony, muscular, vascular, fascial, and neurological structures (2, sections 4,5 &7)."]
[]
[null,"Voltammetric Spinal Signature Reactivity"]
[]
[null,null,null,"Spinal Level",null,null,null,null,null,null,"Value",null,null,null,null,"General Spinal Information"]
[null,null,null,"T7 ",null,null,null,null,null,null,73,null,null,null,null,"Imbalances can be associated with dysfunction of sensation to the abdomen and back (3, p324), stomach, pancreas, liver, gallbladder (3, p240), as well as all LOCAL bony, muscular, vascular, fascial, and neurological structures (2, sections 4,5 &7)."]
[null,null,null,"T8 ",null,null,null,null,null,null,45,null,null,null,null,"Imbalances can be associated with dysfunction of sensation to the abdomen and back (3, p324), stomach, pancreas, liver, gallbladder  (3, p240), systemic blood vessels (3, p240), as well as all LOCAL bony, muscular, vascular, fascial, and neurological structures (2, sections 4,5 &7)."]
[null,null,null,"T9 ",null,null,null,null,null,null,66,null,null,null,null,"Imbalances can be associated with dysfunction of sensation to the abdomen and back (3, p324), stomach, pancreas, liver, gallbladder, adrenal hormones (3, p240), as well as all LOCAL bony, muscular, vascular, fascial, and neurological structures (2, sections 4,5 &7)."]
[null,null,null,"T10 ",null,null,null,null,null,null,74,null,null,null,null,"Imbalances can be associated with dysfunction of sensation to the abdomen and back (3, p324), stomach, pancreas, liver, gallbladder (3, p240), as well as all LOCAL bony, muscular, vascular, fascial, and neurological structures  (2, sections 4,5 &7)."]
[null,null,null,"T11 ",null,null,null,null,null,null,73,null,null,null,null,"Imbalances can be associated with dysfunction of sensation to the abdomen and back (3, p324), stomach, pancreas, liver, gallbladder (3, p240), as well as all LOCAL bony, muscular, vascular, fascial, and neurological structures  (2, sections 4,5 &7)."]
[null,null,null,"T12 ",null,null,null,null,null,null,72,null,null,null,null,"Imbalances can be associated with dysfunction of sensation to the abdomen and back (3, p324), stomach, pancreas, liver, gallbladder (3, p240), as well as all LOCAL bony, muscular, vascular, fascial, and neurological structures  (2, sections 4,5 &7)."]
[null,null,null,"L1 ",null,null,null,null,null,null,69,null,null,null,null,"Imbalances can be associated with dysfunction of the hip (3, p325-7), sensation to the pelvis and back (3, p324),   digestion, bladder, ejaculation (3, p240), as well as all LOCAL bony, muscular, vascular, fascial, and neurological structures  (2, sections 4,5 &7)."]
[null,null,null,"L2 ",null,null,null,null,null,null,58,null,null,null,null,"Imbalances can be associated with dysfunction of the hip and knee (2, p325-7), sensation to the hips and thighs (2, p324), digestion, bladder, ejaculation (2, p240),  as well as all LOCAL bony, muscular, vascular, fascial,  and neurological  structures (2, sections 4,5 &7)."]
[null,null,null,"L3 ",null,null,null,null,null,null,55,null,null,null,null,"Imbalances can be associated with dysfunction of the hip and knee (3, p325-7) sensation to the thighs and knees (3, p324), digestion, bladder, ejaculation (3,  p240), as well as all LOCAL bony, muscular, vascular, fascial, and neurological structures (2, sections 4,5 &7)."]
[null,null,null,"L4 ",null,null,null,null,null,null,58,null,null,null,null,"Imbalances can be associated with dysfunction of the hip and knee (3, p325-7), sensation to the lower legs (3, p324), as well as all LOCAL bony, muscular, vascular, fascial, and neurological structures (2, sections 4,5 &7)."]
[null,null,null,"L5 ",null,null,null,null,null,null,70,null,null,null,null,"Imbalances can be associated with dysfunction of the hip, knee, and foot (3, p325-7), sensation to the lower legs and feet (3, p324), as well as all LOCAL bony, muscular, vascular, fascial, and neurological structures (2, sections 4,5 &7)."]
[null,null,null,"SACRAL ",null,null,null,null,null,null,63,null,null,null,null,"Imbalances can be associated with dysfunction of the hip, knee, and foot (3, p325-7), sensation to the buttocks, legs and feet (3, p324), intestinal blood vessels, bladder, erection (3, p240), as well as all LOCAL bony, muscular, vascular, fascial,  and neurological structures (2, sections 4,5 &7)."]
[]
[null,"Voltammetric Meridian Signature Reactivity"]
[]
[]
[]
[]
[]
[]
[]
[]
[]
[]
[]
[]
[]
[]
[]
[null,"For thousands of years Chinese Medicine has understood that the body is not only a physical entity but an energetic one as well (4, p42). This vital energy is distributed (4, p80) through pathways known as channels, also known as meridians, which represent the organs of the body (4, p 80).  Chinese medicine philosophy believes that disruption in function of the organs or their associated channels can manifest symptoms of disease (4, p752-760).  By detecting voltammetric signature aberrations in reactivity and understanding the general information which may associate to the voltammetric signatures measured,  we are presented with an opportunity to better understand our own unique reactivity profiles through education and subjective interpretation. This information should not be used to change, mitigate imply or alter any treatment, dietary, or lifestyle habbits, patterns or choices without consulting with and being suprivesed by a licensed health care professional.  "]
[]
[]
[]
[]
[]
[]
[]
[]
[null,null,"Voltammetric Channel Signature Reactivity Graph"]
[]
[]
[]
[]
[]
[]
[]
[]
[]
[]
[]
[]
[]
[]
[]
[null,"Voltammetric Channel Signature Reactivity"]
[]
[null,null,"Internal Organ",null,null,null,null,null,null,null,"Value",null,null,null,"Function",null,null,null,null,null,null,null,null,null,null,null,"General Organ Information"]
[null,null,"Gall bladder ",null,null,null,null,null,null,null,91,null,null,null,"The Gall bladder stores and excretes bile, controls decisiveness, controls sinews (with liver) (4, p199).",null,null,null,null,null,null,null,null,null,null,null,"Gall bladder imbalances can be associated with nausea, belching, stiffness, indecisiveness, timidity, being easily discouraged, recklessness, depression or mania, waking early, and being unable to fall back asleep (4, p199-202).\n"]
[null,null,"Liver",null,null,null,null,null,null,null,68,null,null,null,"The Liver stores blood, ensures smooth flow of Qi, controls sinews, manifests in the nails, opens to the eyes, controls tears, houses the ethereal soul and is affected by anger (4, p117).",null,null,null,null,null,null,null,null,null,null,null,"Liver imbalances can be associated with tiring easily, gynecological  and menstrual difficulties,  dysfunction of the eyes, joints, muscles, and neurological system, skin diseases, mental-emotional imbalance, digesitive disorders, premenstrual difficulties,  jaundice, and the nails (4, p117-124)."]
[null,null,"Lung",null,null,null,null,null,null,null,95,null,null,null,"The Lung Governs Qi, body fluids, and respiration, controls channels and blood vessels, regulates all physiological activities, water passages, and skin, manifests in the body hair, opens to the nose, controls nasal mucus, houses the corporeal soul and is affected by worry, grief and sadness (4, p129).",null,null,null,null,null,null,null,null,null,null,null,"Lung imbalances can be associated with dysfunction of voice and breath, cold limbs/hands, disorders of sweating, oedema, signs and symptoms of the common cold, urinary dysfunction, skin disorders, brittle/dry hair, disorders of smell, worry, sadness and grief, and breast lumps  (4, p130-139)."]
[null,null,"Large Intestine ",null,null,null,null,null,null,null,76,null,null,null,"The Large Intestine controls passage and conduction of food and stools, transforms stools and reabsorbs fluids (4, p195).",null,null,null,null,null,null,null,null,null,null,null,"Large Intestine imbalances can be associated with abdominal distension, constipation or loose stools, inability to 'let go', and dwelling on the past (4, p195-196)."]
[null,null,"Stomach",null,null,null,null,null,null,null,77,null,null,null,"The Stomach controls 'receiving', rotting and ripening of food, transportation of food essences, descending of Qi, and is the origin of fluids (4, p 185).",null,null,null,null,null,null,null,null,null,null,null,"Stomach imbalances can be associated with  poor appetite, digestive dysfunction, belching, hiccup, nausea and vomiting, fatigue, muscle weakenss, thirst, dry/cracked tongue (4, p185-188)."]
[null,null,"Spleen ",null,null,null,null,null,null,null,87,null,null,null,"The Spleen governs transformation and transportation of fluids, digestion, controls the raising of Qi, controls blood, muscles and the 4 limbs, opens to the mouth and manifests in the lips, controls saliva, houses the intellect, and is affected by pensiveness (thinking too much) (4, p144).",null,null,null,null,null,null,null,null,null,null,null,"Spleen imbalances can be associated with dysfunction of appetite and digestion, phlegm, oedema, organ prolapse, excessive bleeding, muscle weakness and atrophy, fatigue, impairment of taste, difficulty chewing,  abnormal color and texture of the lips, salivary dysfunction, dysfunctions with intellect, memory, and concentration, pensiveness (4, p144-150)."]
[]
[null,"Voltammetric Channel Signature Reactivity"]
[]
[null,null,"Internal Organ",null,null,null,null,null,null,null,"Value",null,null,null,"Function",null,null,null,null,null,null,null,null,null,null,null,"General Organ Information"]
[null,null,"Heart",null,null,null,null,null,null,null,55,null,null,null,"The Heart governs blood,  blood vessels and the Mind, manifests in complexion, is related to joy, opens to the tongue and controls sweat,   and circulation of blood  (4, p 107).",null,null,null,null,null,null,null,null,null,null,null,"Heart imbalances can be associated with palpitations, pale complexion, weak or irregular pulse  restlessness, agitation, mental illness, manic depression,  disorders of talking, speech, and tongue, disorders of sweating stuttering, aphasia (4, p110-113), or excessive talking (4, p115), mental restlessness, depression, insomnia, excessive dreaming, and anxiety (4, p110-113). "]
[null,null,"Small Intestine ",null,null,null,null,null,null,null,67,null,null,null,"The Small Intestine controls receiving and transforming and separates fluid (4, p191).",null,null,null,null,null,null,null,null,null,null,null,"Small Intestine imbalances can be associated with urine dysfunction, blood in the urine, dysfunction of mental clarity and judgement, thirst, bitter taste, and tongue ulcers (4, p192-193)."]
[null,null,"Bladder",null,null,null,null,null,null,null,110,null,null,null,"The bladder removes water by Qi transformation (4, p205).",null,null,null,null,null,null,null,null,null,null,null,"Bladder imbalances can be associated with abundant clear urination, blood in the urine, urinary retention, jealousy, suspicion, and  holding of long-standing grudges (4, p205-7)."]
[null,null,"Kidney",null,null,null,null,null,null,null,73,null,null,null,"The Kidney stores essence, governs birth, growth, reproduction and development, produces marrow, controls bones, governs water, controls reception of Qi, opens into the ears, manifests in the hair, controls spittle (thick fluid at the back of tongue), controls the two lower orifices, houses Will-power, and controls the Gate of Life (4, p155).",null,null,null,null,null,null,null,null,null,null,null,"Kidney imbalances can be associated with lack of vitality, infertility, or sexual weakness, dysfunctions of mental acuity, bone and teeth dysfunction, dysfunction of urination, breathlessness, asthma, impairment of hearing, tinnitus, hair dysfunction/loss, incontinence, spermatorrhea, diarrhea,  lack of Will-power, motivation, depression (4, p154-162)."]
[null,null,"Circulation",null,null,null,null,null,null,null,91,null,null,null," Mobilizes the Original Qi, Controls the transportation and penetration of Qi, controls the water passges and the excretion of fluids (4, p209).",null,null,null,null,null,null,null,null,null,null,null,"Imbalances can be associated with sneezing, abdominal distension, retention of urine, dysfunctions of sweat, joint, and synovial membrane, and repressed emotions (4, p213-220)."]
[null,null,"Gland Meridian ",null,null,null,null,null,null,null,62,null,null,null,"The pericardium, as an organ, protects the heart and functions with the heart. As a channel it propels the Qi of the heart and lungs (4, p 165-6).",null,null,null,null,null,null,null,null,null,null,null,"Pericardium imbalances can be associated with chest tightness, stuffiness, distension,  oppression, pain in the chest, mental-emotional problems, relationship difficulties, mental restlessness, agitation, anxiety, insomnia, scanty periods, amenorrhoea, heavy periods, painful periods, and emotional problems associated  with the menstrual cycle (4, p166-8). "]
[]
[null,"Voltammetric Digestive Signature Reactivity"]
[null,null,null,null,null,null,null,null,null,null,null,null,null,null,null,null,null,null,null,null,null,null,null,null,null,null,null,null,null,null,null,null,null,null,null,null,null,null,null,null,null,null,null,null,null,null,null,null,null,null,null,null,null,null,null,"Mouth",{"$f":"F334","v":82},50,100]
[null,null,null,null,null,null,null,null,null,null,null,null,null,null,null,null,null,null,null,null,null,null,null,null,null,null,null,null,null,null,null,null,null,null,null,null,null,null,null,null,null,null,null,null,null,null,null,null,null,null,null,null,null,null,null,"Stomach",{"$f":"F335","v":86},50,100]
[null,null,null,null,null,null,null,null,null,null,null,null,null,null,null,null,null,null,null,null,null,null,null,null,null,null,null,null,null,null,null,null,null,null,null,null,null,null,null,null,null,null,null,null,null,null,null,null,null,null,null,null,null,null,null,"Duodenum",{"$f":"F336","v":87},50,100]
[null,null,null,null,null,null,null,null,null,null,null,null,null,null,null,null,null,null,null,null,null,null,null,null,null,null,null,null,null,null,null,null,null,null,null,null,null,null,null,null,null,null,null,null,null,null,null,null,null,null,null,null,null,null,null,"Jejunum",{"$f":"F337","v":77},50,100]
[null,null,null,null,null,null,null,null,null,null,null,null,null,null,null,null,null,null,null,null,null,null,null,null,null,null,null,null,null,null,null,null,null,null,null,null,null,null,null,null,null,null,null,null,null,null,null,null,null,null,null,null,null,null,null,"Ileum",{"$f":"F338","v":71},50,100]
[null,null,null,null,null,null,null,null,null,null,null,null,null,null,null,null,null,null,null,null,null,null,null,null,null,null,null,null,null,null,null,null,null,null,null,null,null,null,null,null,null,null,null,null,null,null,null,null,null,null,null,null,null,null,null,"Colon",51,50,100]
[null,null,null,null,null,null,null,null,null,null,null,null,null,null,null,null,null,null,null,null,null,null,null,null,null,null,null,null,null,null,null,null,null,null,null,null,null,null,null,null,null,null,null,null,null,null,null,null,null,null,null,null,null,null,null,"Bowel flora",72,50,100]
[null,null,null,null,null,null,null,null,null,null,null,null,null,null,null,null,null,null,null,null,null,null,null,null,null,null,null,null,null,null,null,null,null,null,null,null,null,null,null,null,null,null,null,null,null,null,null,null,null,null,null,null,null,null,null,{"$f":"B341","v":0}]
[null,null,null,null,null,null,null,null,null,null,null,null,null,null,null,null,null,null,null,null,null,null,null,null,null,null,null,null,null,null,null,null,null,null,null,null,null,null,null,null,null,null,null,null,null,null,null,null,null,null,null,null,null,null,null,"Protein conversion",{"$f":"F347","v":81},50,100]
[null,null,null,null,null,null,null,null,null,null,null,null,null,null,null,null,null,null,null,null,null,null,null,null,null,null,null,null,null,null,null,null,null,null,null,null,null,null,null,null,null,null,null,null,null,null,null,null,null,null,null,null,null,null,null,"Ubiquinone cycle",{"$f":"F348","v":63},50,100]
[null,null,null,null,null,null,null,null,null,null,null,null,null,null,null,null,null,null,null,null,null,null,null,null,null,null,null,null,null,null,null,null,null,null,null,null,null,null,null,null,null,null,null,null,null,null,null,null,null,null,null,null,null,null,null,"Fructose",110,50,100]
[null,null,null,null,null,null,null,null,null,null,null,null,null,null,null,null,null,null,null,null,null,null,null,null,null,null,null,null,null,null,null,null,null,null,null,null,null,null,null,null,null,null,null,null,null,null,null,null,null,null,null,null,null,null,null,"Maltose",65,50,100]
[null,"Leading experts in the field of health and wellness agree that vital health begins with good nutrition and digestion (5, p 217). Healthy digestion is essential for optimal nutritional absorption and detoxification (5, p 661, 602-603, 165). Incomplete or disordered digestion can be a major contributor in the development of many diseases (5, p217). Voltammetric Signature aberrations in electrical reactivity associated with the following digestive organs, dietary breakdowns, and digestive enzymes do not diagnosis disease or offer quantitative measures but rather indicate possible areas of stress. By detecting voltammetric signature aberrations in reactivity and understanding the general information which may associate to the voltammetric signatures measured,  we are presented with an opportunity to better understand our own unique reactivity profiles through education and subjective interpretation. This information should not be used to change, mitigate imply or alter any treatment, dietary, or lifestyle habbits, patterns or choices without consulting with and being suprivesed by a licensed health care professional.  ",null,null,null,null,null,null,null,null,null,null,null,null,null,null,null,null,null,null,null,null,null,null,null,null,null,null,null,null,null,null,null,null,null,null,null,null,null,null,null,null,null,null,null,null,null,null,null,null,null,null,null,null,null,"Glucose",74,50,100]
[null,null,null,null,null,null,null,null,null,null,null,null,null,null,null,null,null,null,null,null,null,null,null,null,null,null,null,null,null,null,null,null,null,null,null,null,null,null,null,null,null,null,null,null,null,null,null,null,null,null,null,null,null,null,null,"Lactose",71,50,100]
[null,null,null,null,null,null,null,null,null,null,null,null,null,null,null,null,null,null,null,null,null,null,null,null,null,null,null,null,null,null,null,null,null,null,null,null,null,null,null,null,null,null,null,null,null,null,null,null,null,null,null,null,null,null,null,"Sucrose",69,50,100]
[null,null,null,null,null,null,null,null,null,null,null,null,null,null,null,null,null,null,null,null,null,null,null,null,null,null,null,null,null,null,null,null,null,null,null,null,null,null,null,null,null,null,null,null,null,null,null,null,null,null,null,null,null,null,null,"Cholesterol",73,50,100]
[null,null,null,null,null,null,null,null,null,null,null,null,null,null,null,null,null,null,null,null,null,null,null,null,null,null,null,null,null,null,null,null,null,null,null,null,null,null,null,null,null,null,null,null,null,null,null,null,null,null,null,null,null,null,null,"Triglycerides",66,50,100]
[null,null,null,null,null,null,null,null,null,null,null,null,null,null,null,null,null,null,null,null,null,null,null,null,null,null,null,null,null,null,null,null,null,null,null,null,null,null,null,null,null,null,null,null,null,null,null,null,null,null,null,null,null,null,null,"Fatty Acid ",73,50,100]
[null,null,"Voltammetric Digestive Organ Signature Reactivity Graph"]
[null,null,null,null,null,null,null,null,null,null,null,null,null,null,null,null,null,null,null,null,null,null,null,null,null,null,null,null,null,null,null,null,null,null,null,null,null,null,null,null,null,null,null,null,null,null,null,null,null,null,null,null,null,null,null,"Pancreatin",{"$f":"F362","v":81},50,100]
[null,null,null,null,null,null,null,null,null,null,null,null,null,null,null,null,null,null,null,null,null,null,null,null,null,null,null,null,null,null,null,null,null,null,null,null,null,null,null,null,null,null,null,null,null,null,null,null,null,null,null,null,null,null,null,"Lipase",{"$f":"F363","v":47},50,100]
[null,null,null,null,null,null,null,null,null,null,null,null,null,null,null,null,null,null,null,null,null,null,null,null,null,null,null,null,null,null,null,null,null,null,null,null,null,null,null,null,null,null,null,null,null,null,null,null,null,null,null,null,null,null,null,"Amylase",83,50,100]
[null,null,null,null,null,null,null,null,null,null,null,null,null,null,null,null,null,null,null,null,null,null,null,null,null,null,null,null,null,null,null,null,null,null,null,null,null,null,null,null,null,null,null,null,null,null,null,null,null,null,null,null,null,null,null,"Protease",82,50,100]
[null,null,null,null,null,null,null,null,null,null,null,null,null,null,null,null,null,null,null,null,null,null,null,null,null,null,null,null,null,null,null,null,null,null,null,null,null,null,null,null,null,null,null,null,null,null,null,null,null,null,null,null,null,null,null,"Bile",70,50,100]
[null,null,null,null,null,null,null,null,null,null,null,null,null,null,null,null,null,null,null,null,null,null,null,null,null,null,null,null,null,null,null,null,null,null,null,null,null,null,null,null,null,null,null,null,null,null,null,null,null,null,null,null,null,null,null,{"$f":"B367","v":0},{"$f":"F363","v":47}]
[null,null,null,null,null,null,null,null,null,null,null,null,null,null,null,null,null,null,null,null,null,null,null,null,null,null,null,null,null,null,null,null,null,null,null,null,null,null,null,null,null,null,null,null,null,null,null,null,null,null,null,null,null,null,null,null,{"$f":"F364","v":83}]
[]
[null,null,"Voltammetric Dietary Digestive Breakdown Signature Reactivity Graph"]
[]
[]
[]
[]
[null,null,null,null,null,null,null,null,null,null,null,null,null,null,null,null,null,null,null,null,null,null,null,null,null,null,null,null,null,null,null,null,null,null,null,null,null,null,null,null,null,null,null,null,null,null,null,null,null,null,null,null,null,null,null,null,{"$f":"F365","v":82}]
[null,null,null,null,null,null,null,null,null,null,null,null,null,null,null,null,null,null,null,null,null,null,null,null,null,null,null,null,null,null,null,null,null,null,null,null,null,null,null,null,null,null,null,null,null,null,null,null,null,null,null,null,null,null,null,{"$f":"B369","v":0},{"$f":"F366","v":70}]
[]
[null,null,"Voltammetric Digestive Enzyme Signature Reactivity Graph"]
[]
[]
[]
[]
[]
[]
[]
[null,"Voltammetric Digestive Organ Signature Reactivity"]
[]
[]
[null,"Item",null,null,null,"Value",null,null,null,"General Organ Information"]
[null,"Oral",null,null,null,82,null,null,null,"The first stage of digestion takes place in the mouth. As the food is chewed it is mixed with saliva, directing food downward (contains starch-digesting enzymens). Good mastication and salivary production are essential for  optimal digestion.  Stress may indicate eating to quickly and imbalance effecting the production of saliva (6, p73)."]
[null,"Stomach",null,null,null,86,null,null,null,"The second stage of digestion occurs in the stomach wher it adds acid, enzymes, and fluid; then churns, mixes, and grinds food into a liquid mass. Stress may indicate eating too quickly, lack of adequate mastication, hyper/hypo production of HCL (hydrochloric acid), and ANS system imbalance (6, p73).  ","1900-04-14"]
[null,"Duodenum",null,null,null,87,null,null,null,"The third stage of digestion occurs when mulched food passes from the stomach to the duodenum where it is then broken down by the bile delivered from the gall bladder.  Bile is critical for elimination of byproducts, such as cholesterol, and xenobiotics, such as drugs and heavy metals (5, p167).  Small intestine dysfunction is very  common due to bacterial and fungal perversion, improper diet, and inadequate stress management.  Symptoms of stress may include, bloating, IBS and loose stool, abdominal distension, and pain (5, p154). Also common are nonspecific symptoms such as bloating, flatulence, and abdominal pain resulting from bacterial fermentation of sugars and associated gas production (5, p154).","1900-03-30"]
[null,"Jejunum",null,null,null,77,null,null,null,"The next stage of digestion occurs in the jejunum where it absorbs carbohydrates and proteins. Amino acid, sugar, fatty acid particles, vitamins, and minerals are small enough to soak into the villi of the jejunum and drop into the blood stream. The blood takes all these nutrients to other parts of the body to provide fuel to do their jobs  (5, p167).  Small intestine dysfunction is very common due to bacterial and fungal perversion, improper diet and inadequate stress management.  Symptoms of stress may include, bloating, IBS and loose stool, abdominal distension and pain (5, p154). Also common are nonspecific symptoms such as bloating, flatulence, and abdominal pain resulting from bacterial fermentation of sugars and associated gas production (5, p154).","1900-02-28"]
[null,"Ileum",null,null,null,71,null,null,null,"The next stage of digestion occurs in the ileum where it reabsorbs B12 and bile salts. The ileo-cecal valve is a structure that separates the small and large intestine that regulates chyme flow and separates colonic from small intestine bacteria (7, p456). Small intestine dysfunction is very common due to bacterial and fungal perversion, improper diet and inadequate stress management.  Symptoms of stress may include, bloating, IBS and loose stool, abdominal distension and pain.  Also common are nonspecific symptoms such as bloating, flatulence, and abdominal pain resulting from bacterial fermentation of sugars and associated gas production (5, p154).","1900-03-28"]
[null,"Colon",null,null,null,51,null,null,null,"The final stage of digestion occurs in the colon where it reabsorbs water and minerals and passes waste along with water to the recutm (6, P73). The colon provides an environment for microbial fermentation of soluble fiber, starch, and undigested carbohydrates.  As the mass moves through the digestive tract undigested compounds are cleaved and modified by enzymes produced by colonic bacteria to form short-chain fatty acids (SCFAs) and various gases, such as methane, hydrogen, and carbon dioxide (5, p167). Symptoms of dysfunction can include constipation, IBS, bloating, abdominal distension, pain, etc. (5, p 374).","1900-02-24"]
[null,"Bowel flora Balance",null,null,null,72,null,null,null,"A healthy bowel flora is known to be important for proper immune function, vitamin absorption, and the prevention of opportunistic infections such as Candida albicans (5, p 217 &247). Acid-producing lactobacilli and bifid bacteria increase the bioavailability of calcium, copper, iron, magnesium and manganese. Colonization of the small  intestine by endotoxin-producing bacteria may lead to malabsorption of fats, carbohydrates, protein, folic acid, and vitamin B12 (5, p 1455). Adequate amounts of lactobacilli and bifidobacteria are essential for the maintenance of a healthy digestive system. These beneficial flora help protect against overpopulation of potentially pathogenic organisms, enhance nutrient production, and stimulate the immune system. Many factors are thought to affect the composition of the colonic flora, including diet, transit time, stool pH, age, microbial interactions, colonic availability of nutrients, bile acids, sulfate, and the ability of the microbes to metabolize these substrates (5, p173). However, many patients present with nonspecific symptoms such as bloating, flatulence, and abdominal pain resulting from bacterial fermentation of sugars and associated gas production (5, p154).","1900-03-25"]
[]
[]
[null,"Voltammetric Dietary Digestive Signature Breakdown"]
[]
[]
[null,"Item",null,null,null,"Value",null,null,null,"General Digestive Information"]
[null,"Protein conversion",null,null,null,81,null,null,null,"Protein digestion requires hydrochloric acid, pepsin and pancreatic enzymes (8, p201). Protien conversion is often poor due to lack of these digestive factors. Incomplete protein digestion or poor intestinal absorption can result in elevations of amino acids and polypeptides in the bowel and are metabolized by bowel bacteria into several toxic compounds. The toxic metabolites of the amino acids arginine and ornithine are known as polyamines (e.g., putrescine, spermidine, and cadaverine) (5, p2080).","1900-03-13"]
[null,"Ubiquinone cycle",null,null,null,63,null,null,null,"CoQ10, also known as ubiquinone, is an essential component of the mitochondria, where it plays a major role in energy production. CoQ10 can be synthesized within the body, nonetheless, deficiency states exist. Deficiency can be a result of impaired synthesis due to nutritional deficiencies, a genetic or acquired defect in CoQ10 synthesis, or increased tissue needs. Cardiovascular diseases including angina, hypertension, mitral valve prolapse, and congestive heart failure are examples of diseases that require CoQ10. In addition, many of the elderly may have increased CoQ10 requirements (5,  p1476-7). ","1900-03-30"]
[null,"Fructose",null,null,null,110,null,null,null,"Fructose, also known as fruit sugar, is a simple monosaccharide found in many foods. It is one of the three important dietary monosaccharides along with glucose and galactose.  Difficulty in digestion may indicate lack of adequate metabolism from the skeletal mucle and liver (8, p266  & 5, p260).","1900-04-02"]
[null,"Maltose",null,null,null,65,null,null,null,"Maltose, also known as malt sugar, is the least common disaccharide in nature. It is present in germinating grain, corn syrup, and starch. Difficulty in digestion may indicate lack of adequate enzyme production from the pancreas and liver (5, p261).","1900-03-26"]
[null,"Glucose",null,null,null,74,null,null,null,"Glucose, also known as D-glucose or dextrose, is an important carbohydrate in biology. It is a simple sugar (monosaccharide) that is used by cells as a source of energy and a metabolic intermediate. Improper glucose production can indicate hyper/hypo glycemic dysfunction and stress of the pancreas, liver, and gallbladder (5, p 1630)."]
[null,"Lactose",null,null,null,71,null,null,null,"Lactose is a disaccharide formed from galactose and glucose sugar that is found most notably in milk and dairy products. It is estimated that 25 % of Americans are deficient in the enzyme lactase and therefore lactose intolerant. If lactose is not broken down it provides food for gas-producing gut flora. The symptoms of lactose intolerance can range from minor dyspepsia, bloating, and flatulence to severe diarrhea and abdominal cramps (5, p256). Lactose maldigestion can result from genetic nonpersistence of intestinal lactase activity at some time after weaning as well as from secondary lactase deficiencies (5, p1078). ","1900-03-22"]
[null,"Sucrose",null,null,null,69,null,null,null,"Sucrose, also known as table sugar, is an easily assimilated macronutrient that provides a quick source of energy, provoking a rapid rise in blood glucose upon ingestion (5, p260). Overconsumption of sucrose has been linked to tooth decay, diabetes, hypoglycemia, and can hinder immune system function (5, p648).","1900-03-11"]
[null,"Cholesterol",null,null,null,73,null,null,null,"Cholesterol aids in the intestinal absorption of fat molecules as well as the fat-soluble vitamins, A, D, E, and K. It is converted to bile in the liver, which is then stored in the gallbladder. Cholesterol is an important precursor molecule for the synthesis of steroid hormones, including the adrenal gland hormones cortisol and aldosterone as well as the sex hormones progesterone, estrogen, testosterone, and their derivatives. High levels of serum cholesterol, WITH other risk factors, can lead to arterial blockage, heart disease and heart attack (5, p1504).","1900-03-05"]
[null,"Triglycerides",null,null,null,66,null,null,null,"Triglycerides are a type of fat found in blood that the body uses for energy (5, p539). Some triglycerides are  required to maintain health, but high levels of triglycerides can increase the risk of heart disease, stroke and may be a sign of metabolic syndrome. Fried foods and processed foods are the most common causes of high levels of triglycerides (5, p1504). ","1900-02-26"]
[null,"Essential Fatty Acid (EFA) ",null,null,null,73,null,null,null,"EFA's are a necessary type of fat that humans cannot synthesize and therefore must be obtained through diet. EFAs are long-chain polyunsaturated fatty acids derived from linolenic and oleic acids. There are two families of EFAs: Omega-3 and Omega-6. Omega-9 is necessary yet \"non-essential\" because the body can manufacture a modest amount on its own, if provided essential EFA's.  Modern diets of fast foods and packaged dinners tend to be rich in saturated fats and hydrogenated oils and lacking in EFA's (5, p191). We now know that the amount and type of dietary fat plays a major role in maintaining health. Some saturated fatty acids stimulate cholesterol formation, but most do not (5, p935).","1900-03-03"]
[]
[null,"Voltammetric Digestive Enzyme Signature Reactivity"]
[]
[]
[null,"Item",null,null,null,"Value",null,null,null,"General Digestive Enzyme Information"]
[null,"Pancreatin",null,null,null,81,null,null,null,"Pancreatin contains a mixture of several digestive enzymes produced by the exocrine cells of the pancreas. It is composed of amylase, lipase, and protease enzymes and is essential in the breakdown, metabolism, and  absorption of food (5,  p1132). In dysfunction, the net effect is poor nutrition and an unhealthy environment for the flora of the large colon. It has been argued that even small decreases in exocrine pancreatic output can contribute substantially to maldigestion and may have far-reaching effects in chronically ill patients (5, p168).","1900-03-09"]
[null,"Lipase",null,null,null,47,null,null,null,"Lipase is released by the pancres and used to breakdown fats. Lipase converts triglyceride substrates found in ingested oils to monoglycerides and free fatty acids. Imbalance in enzyme production often indicates an  inability  to properly metabolize foods and absorb their nutrients (5, p168).    Symptoms can include: muscle spasms, acne, arthritis, gall bladder stress and formation of gallstones, bladder problems and cystitis, high cholesterol level, high urine sugar level, heart problems, prostate problems, hay fever, spastic colon, psoriasis, constipation, diarrhea, urinary weakness, varicose veins, and development of lipoma under skin (9).  "]
[null,"Amylase",null,null,null,83,null,null,null,"Amylase is present in saliva and released by the pancreas. It is used to breakdown carbohydrates into usable sugars. Imbalance in enzyme production often indicates an inability to properly metabolize foods and absorb their nutrients. Maldigestion of carbohydrates can also cause chronic GI symptoms. Disaccharides, oligosaccharides,  and polysaccharides not hydrolyzed by alpha-amylase or intestinal surface enzymes cannot be absorbed. Bacterial fermentation of these undigested carbohydrates in the lower intestine and colon increases  the osmotic  retention of water. This can lead to cramping, abdominal distention, and diarrhea (5, p168).","1900-03-01"]
[null,"Protease",null,null,null,82,null,null,null,"Protease is released by the stomach and duodenum and used to breakdown proteins.  Acid proteases secreted into the stomach (such as pepsin) and serine proteases present in duodenum (such as trypsin and chymotrypsin) enable us to breakdown protiens in the food into amino acids. Imbalance in enzyme production may  indicate an inability to properly digest and absorb nutrients (5, p 167). Symptoms may include abdominal bloating and discomfort, gas, indigestion, and the passing of undigested food in the stool (5, p663).","1900-03-12"]
[null,"Bile",null,null,null,70,null,null,null,"Bile is produced and stored in the liver and gallbladder and plays a role in the digestion of fats. It is also critical for elimination of byproducts, such as cholesterol, and xenobiotics, such as drugs and heavy metals (5, p167). In the absence of sufficient amounts of bile acids, endotoxins can translocate into the blood stream and produce pathologic conditions that vary in severity (5, p2081). Imbalances can indicate stress in the ANS, liver, gall bladder, stomach and small intestine (5, p 1692). Symptoms may include bloating, gastritis, constipation, acid reflux, ulcers, weight gain, weight loss, cholesterol, fatty liver, brittle hair and nails, learning impairment in children, headaches etc. (5, p 154, 172, 1688-9). ","1900-04-01"]
[]
[null,"Voltammetric Nutritional Signature Reactivity"]
[null,null,null,null,null,null,null,null,null,null,null,null,null,null,null,null,null,null,null,null,null,null,null,null,null,null,null,null,null,null,null,null,null,null,null,null,null,null,null,null,null,null,null,null,null,null,null,null,null,null,null,null,null,null,null,"Ａ",{"$f":"H420","v":101},50,100]
[null,null,null,null,null,null,null,null,null,null,null,null,null,null,null,null,null,null,null,null,null,null,null,null,null,null,null,null,null,null,null,null,null,null,null,null,null,null,null,null,null,null,null,null,null,null,null,null,null,null,null,null,null,null,null,"B1",{"$f":"H421","v":38},50,100]
[null,null,null,null,null,null,null,null,null,null,null,null,null,null,null,null,null,null,null,null,null,null,null,null,null,null,null,null,null,null,null,null,null,null,null,null,null,null,null,null,null,null,null,null,null,null,null,null,null,null,null,null,null,null,null,"B2",100,50,100]
[null,null,null,null,null,null,null,null,null,null,null,null,null,null,null,null,null,null,null,null,null,null,null,null,null,null,null,null,null,null,null,null,null,null,null,null,null,null,null,null,null,null,null,null,null,null,null,null,null,null,null,null,null,null,null,"B3",53,50,100]
[null,null,null,null,null,null,null,null,null,null,null,null,null,null,null,null,null,null,null,null,null,null,null,null,null,null,null,null,null,null,null,null,null,null,null,null,null,null,null,null,null,null,null,null,null,null,null,null,null,null,null,null,null,null,null,"B5",85,50,100]
[null,null,null,null,null,null,null,null,null,null,null,null,null,null,null,null,null,null,null,null,null,null,null,null,null,null,null,null,null,null,null,null,null,null,null,null,null,null,null,null,null,null,null,null,null,null,null,null,null,null,null,null,null,null,null,"B6",103,50,100]
[null,null,null,null,null,null,null,null,null,null,null,null,null,null,null,null,null,null,null,null,null,null,null,null,null,null,null,null,null,null,null,null,null,null,null,null,null,null,null,null,null,null,null,null,null,null,null,null,null,null,null,null,null,null,null,"B7",49,50,100]
[null,null,null,null,null,null,null,null,null,null,null,null,null,null,null,null,null,null,null,null,null,null,null,null,null,null,null,null,null,null,null,null,null,null,null,null,null,null,null,null,null,null,null,null,null,null,null,null,null,null,null,null,null,null,null,"B12",55,50,100]
[null,null,null,null,null,null,null,null,null,null,null,null,null,null,null,null,null,null,null,null,null,null,null,null,null,null,null,null,null,null,null,null,null,null,null,null,null,null,null,null,null,null,null,null,null,null,null,null,null,null,null,null,null,null,null,"Ｈ",49,50,100]
[null,null,null,null,null,null,null,null,null,null,null,null,null,null,null,null,null,null,null,null,null,null,null,null,null,null,null,null,null,null,null,null,null,null,null,null,null,null,null,null,null,null,null,null,null,null,null,null,null,null,null,null,null,null,null,"C",115,50,100]
[null,null,null,null,null,null,null,null,null,null,null,null,null,null,null,null,null,null,null,null,null,null,null,null,null,null,null,null,null,null,null,null,null,null,null,null,null,null,null,null,null,null,null,null,null,null,null,null,null,null,null,null,null,null,null,"Ｄ",42,50,100]
[null,null,null,null,null,null,null,null,null,null,null,null,null,null,null,null,null,null,null,null,null,null,null,null,null,null,null,null,null,null,null,null,null,null,null,null,null,null,null,null,null,null,null,null,null,null,null,null,null,null,null,null,null,null,null,"Ｅ",56,50,100]
[]
[null,null,null,null,null,null,null,null,null,null,null,null,null,null,null,null,null,null,null,null,null,null,null,null,null,null,null,null,null,null,null,null,null,null,null,null,null,null,null,null,null,null,null,null,null,null,null,null,null,null,null,null,null,null,null,"Calcium",{"$f":"H439","v":107},50,100]
[null,null,null,null,null,null,null,null,null,null,null,null,null,null,null,null,null,null,null,null,null,null,null,null,null,null,null,null,null,null,null,null,null,null,null,null,null,null,null,null,null,null,null,null,null,null,null,null,null,null,null,null,null,null,null,"Potassium",48,50,100]
[null,"Vitamins and Minerals are essential building blocks of healthy strong bodies. Suboptimal nutritional absorption from the foods we eat, due to their own nutrient deficiencies or the corruption of optimal digestive tract absorption, may be linked to all known disease. Though nutrient toxicity is possible, it is far less common (6, p323-5). Voltammetric aberrant nutritional signature reactivity may indicate vitamin and/or mineral imbalance.  The may correlate to symptoms of deficiency and even toxicity.  While the measurements offered through evoked potential reactivity can show an aberrant elctrical signature reaction, the device can not differentiate between deficiency or toxicity.  The device is not capable of quantitative measure thus can not be used to diagnose.  By detecting voltammetric signature aberrations in reactivity and understanding the general information which may associate to the voltammetric signatures measured,  we are presented with an opportunity to better understand our own unique reactivity profiles through education and subjective interpretation. This information should not be used to change, mitigate imply or alter any treatment, dietary, or lifestyle habbits, patterns or choices without consulting with and being suprivesed by a licensed health care professional.  ",null,null,null,null,null,null,null,null,null,null,null,null,null,null,null,null,null,null,null,null,null,null,null,null,null,null,null,null,null,null,null,null,null,null,null,null,null,null,null,null,null,null,null,null,null,null,null,null,null,null,null,null,null,"Chlorine",57,50,100]
[null,null,null,null,null,null,null,null,null,null,null,null,null,null,null,null,null,null,null,null,null,null,null,null,null,null,null,null,null,null,null,null,null,null,null,null,null,null,null,null,null,null,null,null,null,null,null,null,null,null,null,null,null,null,null,"Sodium",104,50,100]
[null,null,null,null,null,null,null,null,null,null,null,null,null,null,null,null,null,null,null,null,null,null,null,null,null,null,null,null,null,null,null,null,null,null,null,null,null,null,null,null,null,null,null,null,null,null,null,null,null,null,null,null,null,null,null,"Magnesium",115,50,100]
[null,null,null,null,null,null,null,null,null,null,null,null,null,null,null,null,null,null,null,null,null,null,null,null,null,null,null,null,null,null,null,null,null,null,null,null,null,null,null,null,null,null,null,null,null,null,null,null,null,null,null,null,null,null,null,"Iron",54,50,100]
[null,null,null,null,null,null,null,null,null,null,null,null,null,null,null,null,null,null,null,null,null,null,null,null,null,null,null,null,null,null,null,null,null,null,null,null,null,null,null,null,null,null,null,null,null,null,null,null,null,null,null,null,null,null,null,"Sulphur",55,50,100]
[null,null,null,null,null,null,null,null,null,null,null,null,null,null,null,null,null,null,null,null,null,null,null,null,null,null,null,null,null,null,null,null,null,null,null,null,null,null,null,null,null,null,null,null,null,null,null,null,null,null,null,null,null,null,null,"Manganese",44,50,100]
[null,null,null,null,null,null,null,null,null,null,null,null,null,null,null,null,null,null,null,null,null,null,null,null,null,null,null,null,null,null,null,null,null,null,null,null,null,null,null,null,null,null,null,null,null,null,null,null,null,null,null,null,null,null,null,"Chromium",116,50,100]
[null,null,null,null,null,null,null,null,null,null,null,null,null,null,null,null,null,null,null,null,null,null,null,null,null,null,null,null,null,null,null,null,null,null,null,null,null,null,null,null,null,null,null,null,null,null,null,null,null,null,null,null,null,null,null,"Zinc",95,50,100]
[null,null,null,null,null,null,null,null,null,null,null,null,null,null,null,null,null,null,null,null,null,null,null,null,null,null,null,null,null,null,null,null,null,null,null,null,null,null,null,null,null,null,null,null,null,null,null,null,null,null,null,null,null,null,null,"Selenium",{"$f":"H453","v":38},50,100]
[null,null,null,null,null,null,null,null,null,null,null,null,null,null,null,null,null,null,null,null,null,null,null,null,null,null,null,null,null,null,null,null,null,null,null,null,null,null,null,null,null,null,null,null,null,null,null,null,null,null,null,null,null,null,null,"Iodine",48,50,100]
[null,null,null,null,null,null,null,null,null,null,null,null,null,null,null,null,null,null,null,null,null,null,null,null,null,null,null,null,null,null,null,null,null,null,null,null,null,null,null,null,null,null,null,null,null,null,null,null,null,null,null,null,null,null,null,"Phosphorous",108,50,100]
[null,null,"Voltammetric Nutritional Signature Reactivity Graph - Vitamins",null,null,null,null,null,null,null,null,null,null,null,null,null,null,null,null,null,null,null,null,null,null,null,null,null,null,null,null,null,null,null,null,null,null,null,null,null,null,null,null,null,null,null,null,null,null,null,null,null,null,null,null,"Boron",57,50,100]
[null,null,null,null,null,null,null,null,null,null,null,null,null,null,null,null,null,null,null,null,null,null,null,null,null,null,null,null,null,null,null,null,null,null,null,null,null,null,null,null,null,null,null,null,null,null,null,null,null,null,null,null,null,null,null,"Molybdenum",92,50,100]
[null,null,null,null,null,null,null,null,null,null,null,null,null,null,null,null,null,null,null,null,null,null,null,null,null,null,null,null,null,null,null,null,null,null,null,null,null,null,null,null,null,null,null,null,null,null,null,null,null,null,null,null,null,null,null,"Silicon",58,50,100]
[null,null,null,null,null,null,null,null,null,null,null,null,null,null,null,null,null,null,null,null,null,null,null,null,null,null,null,null,null,null,null,null,null,null,null,null,null,null,null,null,null,null,null,null,null,null,null,null,null,null,null,null,null,null,null,"Cobalt",119,50,100]
[null,null,null,null,null,null,null,null,null,null,null,null,null,null,null,null,null,null,null,null,null,null,null,null,null,null,null,null,null,null,null,null,null,null,null,null,null,null,null,null,null,null,null,null,null,null,null,null,null,null,null,null,null,null,null,"Copper",36,50,100]
[null,null,null,null,null,null,null,null,null,null,null,null,null,null,null,null,null,null,null,null,null,null,null,null,null,null,null,null,null,null,null,null,null,null,null,null,null,null,null,null,null,null,null,null,null,null,null,null,null,null,null,null,null,null,null,"Vit. K",82,50,100]
[null,null,null,null,null,null,null,null,null,null,null,null,null,null,null,null,null,null,null,null,null,null,null,null,null,null,null,null,null,null,null,null,null,null,null,null,null,null,null,null,null,null,null,null,null,null,null,null,null,null,null,null,null,null,null,"Vanadium",83,50,100]
[]
[]
[]
[null,null,"Voltammetric Nutritional Signature Reactivity Graph - Minerals"]
[]
[]
[]
[]
[]
[]
[]
[]
[]
[]
[]
[null,"Voltammetric Nutritional Signature Reactivity"]
[]
[null,null,"Item",null,null,null,null,"Value",null,null,"Food Source",null,null,null,null,null,null,null,null,null,null,null,null,"General Nutritional Information"]
[null,null," Vitamin A  Retinol",null,null,null,null,101,null,null,"retinol: fortified milk, cheese, cream, butter, eggs, liver. Beta-carotene: spinach and other dark leafy greens, broccoli, deep orange fruits (apricots, cantaloupe), and vegetables (squash, carrots, sweet potatoes, pumpkin) (6,p376).",null,null,null,null,null,null,null,null,null,null,null,null,"Vitamin A imbalances can be associated with: night blindness, corneal drying, trangular gray spots on eye, softeneing of the cornea, corneal degeneration and blindness, impaired immunity; plugging of hair follicies with keratin, and formation of white lumps (6, p376)."]
[null,null,"Vitamin B1  Thaimine",null,null,null,null,38,null,null,"all plant and animal tissues but only whole cereals, nuts, seeds, and pulses (certain pod bearing plants) (7, p341).",null,null,null,null,null,null,null,null,null,null,null,null,"Vitamin B1 imbalances can be associated with: enlarged heart, cardiac failure, muscular weakness, apathy, poor short-term memory, confusion, irritability, anorexia, weight loss (6,p329), beriberi and Wernicke-Korsakoff syndrome (7, p341)."]
[null,null," Vitamin B2 Riboflavin",null,null,null,null,100,null,null,"milk products (yogurt, cheese), whole-grain, liver, fortified, or enriched grain products, (6,p330), and eggs (7,p344).",null,null,null,null,null,null,null,null,null,null,null,null,"Vitamin B2 imbalances can be associated with: sore throat,  cracks and redness at corners of mouth, painful, smooth, purplish red tongue, inflammation (characterized by skin lesions covered with greasy scales) (6, p330), raw red lips (7, p344)."]
[null,null,"Vitamin B3    Niacin ",null,null,null,null,53,null,null,"milk, eggs, meat, poultry, fish, whole-grains, nuts, all protein-containing foods (6, p333), offals (organ meats), and pulses (7, p345).",null,null,null,null,null,null,null,null,null,null,null,null,"Vitamin B3 imbalances can be associated with: diarrhea, abdominal pain, vomiting, an inflamed, swollen, smooth, bright red tongue, depression, apathy, fatigue, loss of memory, headache, and bilateral symmetrical rash on areas exposed to sunlight (6, p333),pellagra (7,p345).\n\n"]
[null,null,"Vitamin B5 Pantothenic acid ",null,null,null,null,85,null,null,"widespread in foods; chicken, beef, potatoes, oats, tomatoes, liver, egg yolk, broccoli, whole grains (6, p335.)",null,null,null,null,null,null,null,null,null,null,null,null,"Vitamin B5 imbalances can be associated with: vomiting, nausea, stomach cramps, insomnia, fatigue, depression, irritability, restlessness, apath, hypoglycemia, increased sensitivity to  insulin, numbness, muscle cramps, and an inability to walk (6, p335)."]
[null,null,"Vitamin B6  Pyridoxyl Phosphate",null,null,null,null,103,null,null,"meats, fish, poultry, potatoes and other starchy vegetables, legumes, noncitrus fruits, liver, and soy products (6, p337).",null,null,null,null,null,null,null,null,null,null,null,null,"Vitamin B6 imbalances can be associated with: scaly dermatitis, anemia (small-cell type), depression, confusion, and convulsions (6, p337)."]
[null,null," Folate",null,null,null,null,49,null,null,"leafy green vegetables, legumes, seeds, liver (6, p342), nuts, whole grain cereals (7, p350).",null,null,null,null,null,null,null,null,null,null,null,null,"Folate imbalances can be associated with: megaloblastic anemia, smooth, red tongue, mental confusion, weakness, fatigue, irritability, headach, shortness of breath, elevated homocysteine (6,p 342), and neural tube defects (7, p350)."]
[null,null," Vitamin B12 Cobalamin",null,null,null,null,55,null,null,"foods of animal origin (meat, fish, poultry, shellfish, milk, cheese, eggs) (6, p345), organ meat, fermented foods, foods contaminated with mould or other microorganisms, and chlorella (7, p348.)",null,null,null,null,null,null,null,null,null,null,null,null,"Vitamin B12 imbalances can be associated with: megaloblastic anemia, fatigue, degeneration of peripheral nerves  progressing  to paralysis, sore tongue, loss of appetite, and consitpation (6, p345)."]
[null,null," Biotin",null,null,null,null,49,null,null,"widespread in foods at low concentrations, good amounts in organ meats, yeast (6, p352) liver, egg yolks, soybeans, fish, whole grains, also produced by gut bacteria (6, p335). ",null,null,null,null,null,null,null,null,null,null,null,null,"Biotin imbalances can be associated with: depression, lethargy, hallucinations, numb or tingling sensation in the arms and legs, red scaly rash around the eyes, nose , and mouth, hair loss (6, p335), and dermatitis (7, p352.)"]
[null,null," Vitamin C  Ascorbic Acid",null,null,null,null,115,null,null,"fruit, fruit juices, salad and leafy vegetables (7, p 353).",null,null,null,null,null,null,null,null,null,null,null,null,"Vitamin C imbalances can be associated with: anemia (small-cell type), atherosclerotic plaques, pinpoint hemorrhages, bone fragility, joint pain, poor wound healing, frequent infections, bleeding gums, loosened teeth, muscle degeneration and pain, hysteria, depression, rough skin, and blotchy bruises (6, p355)."]
[null,null," Vitamin D Cholecalciferol  ",null,null,null,null,42,null,null,"sunlight, butter, juices, cereals, veal, beef, egg yolks, liver, fatty fish (herring, salmon, sardines) and their oils (6, p381).",null,null,null,null,null,null,null,null,null,null,null,null,"Vitamin D imbalances can be associated with: rickets in children, osteomalacia or osteoporosis in adults (6, p381) muscle weakness, tetany, growth failure, and increased risk of infection (7, p337)."]
[null,null,"Vitamin E Tocopherol",null,null,null,null,56,null,null,"polyunsaturated plant oils, leafy green vegetables, wheat germ, whole grains, liver, egg yolks, nuts, seeds, and fatty meats (6, p383).",null,null,null,null,null,null,null,null,null,null,null,null,"Vitamin E imbalances can be associated with: red blood cell breakage (6, p383) progressive degeneration of nerves, muscle atrophy and retinopathy (7, p339)."]
[]
[]
[]
[]
[null,"Voltammetric Nutritional Signature Reactivity"]
[]
[null,null,"Item",null,null,null,null,"Value",null,null,"Food Source",null,null,null,null,null,null,null,null,null,null,null,null,"General Nutritional Information"]
[null,null,"Calcium",null,null,null,null,107,null,null,"milk and milk products, small fish (with bones), calcium-set tofu, greens (bok choy, broccoli, chard, kale), legumes (6, p 422) pulses, nuts, and whole grain cereals(7, p373).",null,null,null,null,null,null,null,null,null,null,null,null,"Calcium imbalances can be associated with:   Vitamin D deficiency and poor absorption (7, p373), stunted growth in children, bone loss in adults (6, p422)."]
[null,null,"Potassium",null,null,null,null,48,null,null,"fruits and vegetables are the best sources (although there is some in milk and flesh foods) (7, p36) some in all whole foods, grains, and legumes (6, p 415).",null,null,null,null,null,null,null,null,null,null,null,null,"Potassium imbalances can be associated with: muscle weakness, changes in cardiac function, reduced gut motility, alkalosis, depression and confusion (7, p362), and glucose intolerance (6, p 414)."]
[null,null,"Chloride",null,null,null,null,57,null,null,"table salt, soy sauce, moderate amounts in meats, milks, eggs, large amounts in processed foods (6, p 414).",null,null,null,null,null,null,null,null,null,null,null,null,"Chloride imbalinces do not occur under normal circumstances (6, p414)."]
[null,null,"Sodium",null,null,null,null,104,null,null,"table salt, soy sauce, moderate amounts in meats, mild amounts in breads, and vegetables, and large amounts in processed foods (6, p 413).",null,null,null,null,null,null,null,null,null,null,null,null,"Sodium imbalances can be associated with: muscle cramps, mental apathy, and loss of appetite. Toxicity symptoms; edema, and acute hypertension (6, p 413). "]
[null,null,"Magnesium",null,null,null,null,115,null,null,"nuts, legumes, whole grains, dark green vegetables, seafood, chocolate, and cocoa (6, p 425).",null,null,null,null,null,null,null,null,null,null,null,null,"Magnesium imbalances can be associated with: muscle weakness, spasms, personality changes, loss of appetite, nausea and vomiting (7, p360) confusion (if extreme), convulsions,  bizarre muscle movements, hallucinations, and difficulty in swallowing. In children, growth failure (6, p 425)."]
[null,null,"Iron",null,null,null,null,54,null,null,"meat (particularly organ meat), fish, cereals, green vegetables (7, p368), poultry, shellfish, eggs, legumes, and dried fruits (6, p 451).",null,null,null,null,null,null,null,null,null,null,null,null,"Vitamin A imbalances can be associated with: iron deficiency anemia (7, p368), impaired immunity, pale skin, nailbeds, mucous membranes and palm creases, concave nails, inability to regulate body temperature, and pica (6, p 452)."]
[null,null,"Sulphate",null,null,null,null,55,null,null,"All protien-containing foods (meats, fish, poultry, eggs, milk, legumes, and nuts) (6, p426).",null,null,null,null,null,null,null,null,null,null,null,null,"No frank sulphate deficiences are known; protien deficiency  would occur first (6, p 426)."]
[null,null,"Manganese",null,null,null,null,44,null,null,"most plant foods especially wholegrain cereals, nuts, dried fruits, leafy vegetables and tea (7, p361). ",null,null,null,null,null,null,null,null,null,null,null,null,"Manganese deficiencies are rare (6, p460), not commonly seen in humans (7, p361)."]
[null,null,"Chromium",null,null,null,null,116,null,null,"meats (especially liver), whole grains, brewer's yeast (6, p462), and pulses (7, p358).",null,null,null,null,null,null,null,null,null,null,null,null,"Chromium imbalances can be associated with: impaired glucose uptake, other signs of reduced insulin action (7, p358) and diabetes-like condition (6, p 462)."]
[null,null,"Zinc",null,null,null,null,95,null,null,"protein-containing foods: red meats, shellfish, whole grains (6, p455), pulses (7, p364).",null,null,null,null,null,null,null,null,null,null,null,null,"Zinc imbalances can be associated with: growth retardation, delayed sexual maturation, impaired immune function, hair loss, eye and skin lesions, loss of appetite (6, p 455), slow  healing,  and hypogonadism (7, p3640)."]
[]
[null,"Voltammetric Nutritional Signature Reactivity"]
[]
[null,null,"Item",null,null,null,null,"Value",null,null,"Food Source",null,null,null,null,null,null,null,null,null,null,null,null,"General Nutritional Information"]
[null,null,"Selenium",null,null,null,null,38,null,null,"meat(particularly organ meat), eggs,cereals (7, p363)seafood, whole grains, fruits, and vegetables(depending on the soil content) (6, p458). ",null,null,null,null,null,null,null,null,null,null,null,null,"Selenium imbalances can be associated with: keshan's disease (progressive cardiomyopathy) (7, p363),growth impairment, high cholesterol levels, increased incidence of cancer, pancreatic insufficiency (inability to secrete adequate amounts of digestive enzymes), immune impairment, liver impairment, male sterility (6,p548)."]
[null,null,"Iodine",null,null,null,null,48,null,null,"seafood,iodized salt (7, p365) plants grown in iodine-rich soil and animals fed those plants (7, p 457).",null,null,null,null,null,null,null,null,null,null,null,null,"Iodine imbalances can be associated with: underactive thyroid gland, goiter, mental and physical retardation in infants (7, p457) cretinism and myxoedema (6, p365)"]
[null,null,"Phosphorous",null,null,null,null,108,null,null,"all animal tissues (meat, fish, poultry, eggs, and milk) (6, p 423).",null,null,null,null,null,null,null,null,null,null,null,null,"Phosporous imbalances can be associated with: muscular weakness, and bone pain (6, p423)."]
[null,null,"Boron",null,null,null,null,57,null,null,"fresh fruits, apples, carrots, grapes, pears, leafy vegetables, nuts and grains (6, p462).",null,null,null,null,null,null,null,null,null,null,null,null,"Boron imbalances can be associated with: dysfunction in brain activities and bones(6, p462)."]
[null,null,"Molybdenum",null,null,null,null,92,null,null,"widespread in most plant foods(amount depends on the soil content) (7, p361), legumes, cereals, nuts (6,p 463).",null,null,null,null,null,null,null,null,null,null,null,null,"Molybdenum imbalances can be associated with: reduced  function of molybdenum requiring enzymes (xanthine oxidase, aldehyde oxidase and sulphite oxidase) (7, p361)."]
[null,null,"Silicon",null,null,null,null,58,null,null,"alfalfa, kelp, dark green leafy vegetables, horsetail, nettle, flaxseed, nuts, seeds, onions, berries (6, p462).",null,null,null,null,null,null,null,null,null,null,null,null,"Silicon imbalances can be associated with:  the formation of bones and collagen (6, p462).\n"]
[null,null,"Cobalt",null,null,null,null,119,null,null,"all green leafy vegetables, also various fruits, vegetables and herbs (6, p462).",null,null,null,null,null,null,null,null,null,null,null,null,"Cobalt imbalances can be associated with: key mineral in the large vitamin B12 molecule, but is not an essential nutrient (6,p 462)."]
[null,null,"Copper",null,null,null,null,36,null,null,"seafood, nuts, whole grains, seeds, legumes (6, p459). ",null,null,null,null,null,null,null,null,null,null,null,null,"Copper imbalances can be associated with: anemia, bone abnormalities (6, p459)."]
[null,null,"K phylloquinone",null,null,null,null,82,null,null,"bacterial synthesis in the digestive tract, liver,leafy green vegetables, cabbbage-type vegetables, milk (6, p385).",null,null,null,null,null,null,null,null,null,null,null,null,"Vitamin K imbalances can be associated with: excessive bleeding, especially brain hemorrhage in newborn (7, p340)."]
[null,null,"Vanadium",null,null,null,null,83,null,null,"dill, fish, olives, meat, radishes, snap beans, vegetable oils, whole grains (6, 462).",null,null,null,null,null,null,null,null,null,null,null,null,"Vanadium imbalances can be associated with: necessary for growth and bone development and normal reproduction (6, p 462)."]
[]
[null,"Voltammetric Hormonal Signature Reactivity"]
[null,null,null,null,null,null,null,null,null,null,null,null,null,null,null,null,null,null,null,null,null,null,null,null,null,null,null,null,null,null,null,null,null,null,null,null,null,null,null,null,null,null,null,null,null,null,null,null,null,null,null,null,null,null,null,"Estrogen",{"$f":"I508","v":50},50,100]
[null,null,null,null,null,null,null,null,null,null,null,null,null,null,null,null,null,null,null,null,null,null,null,null,null,null,null,null,null,null,null,null,null,null,null,null,null,null,null,null,null,null,null,null,null,null,null,null,null,null,null,null,null,null,null,"Progesterone",{"$f":"I509","v":68},50,100]
[null,null,null,null,null,null,null,null,null,null,null,null,null,null,null,null,null,null,null,null,null,null,null,null,null,null,null,null,null,null,null,null,null,null,null,null,null,null,null,null,null,null,null,null,null,null,null,null,null,null,null,null,null,null,null,"Testosterone",73,50,100]
[null,null,null,null,null,null,null,null,null,null,null,null,null,null,null,null,null,null,null,null,null,null,null,null,null,null,null,null,null,null,null,null,null,null,null,null,null,null,null,null,null,null,null,null,null,null,null,null,null,null,null,null,null,null,null,"Oxytocin",75,50,100]
[null,null,null,null,null,null,null,null,null,null,null,null,null,null,null,null,null,null,null,null,null,null,null,null,null,null,null,null,null,null,null,null,null,null,null,null,null,null,null,null,null,null,null,null,null,null,null,null,null,null,null,null,null,null,null,"Adrenaline",66,50,100]
[null,null,null,null,null,null,null,null,null,null,null,null,null,null,null,null,null,null,null,null,null,null,null,null,null,null,null,null,null,null,null,null,null,null,null,null,null,null,null,null,null,null,null,null,null,null,null,null,null,null,null,null,null,null,null,"Dopamine",68,50,100]
[null,null,null,null,null,null,null,null,null,null,null,null,null,null,null,null,null,null,null,null,null,null,null,null,null,null,null,null,null,null,null,null,null,null,null,null,null,null,null,null,null,null,null,null,null,null,null,null,null,null,null,null,null,null,null,"Serotonin",47,50,100]
[null,null,null,null,null,null,null,null,null,null,null,null,null,null,null,null,null,null,null,null,null,null,null,null,null,null,null,null,null,null,null,null,null,null,null,null,null,null,null,null,null,null,null,null,null,null,null,null,null,null,null,null,null,null,null,"Thyroxine",63,50,100]
[null,null,null,null,null,null,null,null,null,null,null,null,null,null,null,null,null,null,null,null,null,null,null,null,null,null,null,null,null,null,null,null,null,null,null,null,null,null,null,null,null,null,null,null,null,null,null,null,null,null,null,null,null,null,null,"Parathyroid",49,50,100]
[null,null,null,null,null,null,null,null,null,null,null,null,null,null,null,null,null,null,null,null,null,null,null,null,null,null,null,null,null,null,null,null,null,null,null,null,null,null,null,null,null,null,null,null,null,null,null,null,null,null,null,null,null,null,null,"Insulin",87,50,100]
[null,null,null,null,null,null,null,null,null,null,null,null,null,null,null,null,null,null,null,null,null,null,null,null,null,null,null,null,null,null,null,null,null,null,null,null,null,null,null,null,null,null,null,null,null,null,null,null,null,null,null,null,null,null,null,"Cortisol",80,50,100]
[]
[]
[]
[null,"Hormones are organic chemicals produced by the body which assist in regulating metabolism, growth and development, reproduction and many other important bodily functions. (1, p 252). Hormonal imbalance has become common in our culture.  Some contributors to hormonal imbalaces are nutritional deficiency and toxicity from exposure to many different types of industrial, environmental, and chemical toxins which have infiltrated our soil, food, air, and water (10). Voltammetric aberrant hormonal signature electrical reactivity responses are not quantitative or diagnostic but rather indicate possible areas of stress. By detecting voltammetric signature aberrations in reactivity and understanding the general information which may associate to the voltammetric signatures measured,  we are presented with an opportunity to better understand our own unique reactivity profiles through education and subjective interpretation. This information should not be used to change, mitigate imply or alter any treatment, dietary, or lifestyle habbits, patterns or choices without consulting with and being suprivesed by a licensed health care professional. "]
[]
[]
[]
[]
[]
[]
[]
[]
[null,null,"Voltametric Hormonal Signature Reactivity Graph"]
[]
[]
[]
[]
[]
[]
[]
[]
[]
[]
[]
[]
[]
[]
[]
[null,"Voltammetric Hormonal Signature Reactivity"]
[]
[]
[null,null,"Item",null,null,null,null,null,"Value",null,null,null,null,"General Hormonal Information"]
[null,null,"Estrogen",null,null,null,null,null,50,null,null,null,null,"Estrogen imbalances can be associated with: weight gain, abdominal bloating, water retention,  breast tenderness, headaches, acne, constipation or diarrhea, backache, muscle pain, joint stiffness, mood swings, depression, food cravings, irritability, clumsiness, poor coordination, insomnia, poor concentration (11, p 390), hot flushes, night sweats, fatigue, loss of libido (11, p390)."]
[null,null,"Progesterone",null,null,null,null,null,68,null,null,null,null,"Progesterone imbalances can be associated with: weight gain, abdominal bloating, water retention, breast tenderness, headaches, acne, constipation or diarrhea backache, muscle pain, joint stiffness, mood swings, depression, food cravings, irritability, clumsiness, poor coordination, insomnia, poor concentration (11, p 390). "]
[null,null,"Testosterone",null,null,null,null,null,73,null,null,null,null,"Testosterone imbalances can be associated with: decreased sexual function, loss of bone density, loss of muscle strength and mass, memory loss, abdominal fat, decreased red blood cell production and sperm production (12).\n"]
[null,null,"Oxytocin",null,null,null,null,null,75,null,84,null,null,"Oxytocin imbalances can be associated with: feelings of bonding and empathy, it is also involved in mood and learning. Deficiency has been found in fibromyalgia and lower levels correlated with increased anxiety and depression (13, p228). Oxytocin has also been suggested as a treatment for autism. "]
[null,null,"Adrenaline",null,null,null,null,null,66,null,40,null,null,"Adrenaline imbalances can be associated with: insomnia, depression, fatigue, headache, upset stomach, digestive disturbances, and irritability (5, p702)."]
[null,null,"Dopamine",null,null,null,null,null,68,null,81,null,null,"Dopamine imbalances can be associated with: aberrant substance-seeking behavior (e.g., alcohol, drug, tobacco, food) and other related behaviors (e.g., sexual addiction, pathologic gambling). It is more common for people with ADHD to participate in high-risk sports, criminal activities, or other euphoria-generating behaviors and have a low tolerance to boredom (5, p1534). They aslo have increased percieved pain (5, p1673), parkinsonian symptoms, dystonia, akathisia, and tardive dyskinesia (14, p300). "]
[null,null,"Serotonin",null,null,null,null,null,47,null,73,null,null,"Seratonin imbalances can be associated with: panic disorder, obsessvie complusive disorder, social phobia, and major depression (14, p305)."]
[null,null,"Thyroxin",null,null,null,null,null,63,null,null,null,null,"Thyroxin imbalances can be associated with: weakness, voice change, weight gain, swelling, muscle pain, cold intolerance, constipation, dry skin, hair loss, heavy periods, depression, impaired memory, lethargy, swelling around the eyes, slow heart rate (11, p144-5), hyperactivity irritability, altered mood, insomnia, heat intolerance, increased sweating, palpitation, fatigue, weakness, weight loss with increased appetite, diarrhea, increased fecal fat, increased urination, loss of libido, infrequent, light or absent periods, heart rate fluctuaions, fine tremor, redness of the palms, diffuse pigmentation, hair loss, gynecomastia, eyelid retraction, nail abnormalities, itchiness, and hives (11, p170).              "]
[null,null,"Parathyroid",null,null,null,null,null,49,null,null,null,null,"Parathormone imbalances can be associated with: parasthesias around the mouth and in the fingers, muscle cramps and seizures, cataracts (11, p5080) recurrent renal stones, frequent/excessive urination, bone disease, muscular weakness, loss of appetite, nausea, vomitting, and constipation (11, p506),"]
[null,null,"Insulin",null,null,null,null,null,87,null,null,null,null,"Insulin imbalances can be associated with: frequent/excessive urination, excessive thirst, severe dehydration (11, p 241), ketoacidosis (11, p267), sweating, palpitations, weakness, neurologic symptoms, confusion or coma, and neurologic dysfunction (11, p261)."]
[null,null,"Cortisol",null,null,null,null,null,80,null,null,null,null,"Cortisol imbalances can be associated with: fatigue, lack of appetite, nausea, diarrhea, weight loss, epigastric or abdominal pains, muscle aches, postural hypotension, excessive pigmentation, loss of underarm hair (11, p203), weight gain, muscular disability, malaise, depression, skin disorders (acne, bruising), decreased fertility, and libido (11, p194). "]
[]
[null,"Voltammetric Food and Environmental Signature Reactivity"]
[]
[null,"Although they are often unknown and unidentified by most people, food and environmental sensitivities are a very common root of symptoms we experience.  Everyday we eat, drink, smell, and breath items to which we may have an allergy, sensitivity, or intolerance (5, p583-584). A voltammetric aberrant electrical food or environmental signature reaction response does not differentiate between what is a allergy, sensitivity, or an intolerance.  However it does offer us an area of interest when examined. One common way of examining food sensitivity is through dietary elimination and reintroduction or specific blood testing (5,p583) which can guide us to a better understanding of our body and it's needs.  By detecting voltammetric signature aberrations in reactivity and understanding the general information which may associate to the voltammetric signatures measured,  we are presented with an opportunity to better understand our own unique reactivity profiles through education and subjective interpretation.  This information should not be used to change, mitigate imply or alter any treatment, dietary, or lifestyle habbits, patterns or choices without consulting with and being suprivesed by a licensed health care professional.  "]
[]
[]
[]
[]
[]
[]
[]
[]
[]
[]
[]
[]
[]
[]
[]
[]
[]
[]
[]
[]
[]
[]
[]
[]
[]
[]
[]
[]
[]
[]
[]
[]
[]
[]
[]
[]
[]
[]
[]
[]
[]
[]
[null,"Voltammetric Food and Environmental Signature Reactivity"]
[]
[null,null,"Item",null,null,null,null,null,null,null,null,null,"Value",null,null,"Item",null,null,null,null,null,null,null,null,null,"Value",null,null,"Item",null,null,null,null,null,null,null,null,null,"Value"]
[null,null,"Milk",null,null,null,null,null,null,null,null,null,46,null,null,"Yolk",null,null,null,null,null,null,null,null,null,86,null,null,"Feathers",null,null,null,null,null,null,null,null,null,64]
[null,null,"Goat's Milk",null,null,null,null,null,null,null,null,null,51,null,null,"Egg White",null,null,null,null,null,null,null,null,null,81,null,null,"Animal Hair",null,null,null,null,null,null,null,null,null,45]
[null,null,"Cheese",null,null,null,null,null,null,null,null,null,92,null,null,"Fried Food",null,null,null,null,null,null,null,null,null,67,null,null,"Cat Hair",null,null,null,null,null,null,null,null,null,54]
[null,null,"Aspartame",null,null,null,null,null,null,null,null,null,93,null,null,"Tea",null,null,null,null,null,null,null,null,null,60,null,null,"Dog Hair",null,null,null,null,null,null,null,null,null,95]
[null,null,"Trans Fat",null,null,null,null,null,null,null,null,null,59,null,null,"Coffee",null,null,null,null,null,null,null,null,null,97,null,null,"Mosquito Venom",null,null,null,null,null,null,null,null,null,64]
[null,null,"Lactose",null,null,null,null,null,null,null,null,null,68,null,null,"Beer",null,null,null,null,null,null,null,null,null,52,null,null,"Sheep Wool",null,null,null,null,null,null,null,null,null,47]
[null,null,"Whey",null,null,null,null,null,null,null,null,null,95,null,null,"Red wine",null,null,null,null,null,null,null,null,null,107,null,null,"Cosmetic Chemicals",null,null,null,null,null,null,null,null,null,45]
[null,null,"Sea Food",null,null,null,null,null,null,null,null,null,51,null,null,"White Wine",null,null,null,null,null,null,null,null,null,103,null,null,"Soap",null,null,null,null,null,null,null,null,null,60]
[null,null,"Sugar",null,null,null,null,null,null,null,null,null,53,null,null,"Food Additives",null,null,null,null,null,null,null,null,null,114,null,null,"Ant Venom",null,null,null,null,null,null,null,null,null,68]
[null,null,"Spice",null,null,null,null,null,null,null,null,null,103,null,null,"Food Preservatives",null,null,null,null,null,null,null,null,null,86,null,null,"Mold",null,null,null,null,null,null,null,null,null,94]
[null,null,"Mustard",null,null,null,null,null,null,null,null,null,58,null,null,"Gluten",null,null,null,null,null,null,null,null,null,98,null,null,"Fungus",null,null,null,null,null,null,null,null,null,107]
[null,null,"Pepper",null,null,null,null,null,null,null,null,null,61,null,null,"Food Coloring",null,null,null,null,null,null,null,null,null,44,null,null,"Candida",null,null,null,null,null,null,null,null,null,38]
[null,null,"Paprika",null,null,null,null,null,null,null,null,null,59,null,null,"Pollen",null,null,null,null,null,null,null,null,null,44,null,null,"Penicillium",null,null,null,null,null,null,null,null,null,47]
[null,null,"Curry",null,null,null,null,null,null,null,null,null,53,null,null,"Perfume",null,null,null,null,null,null,null,null,null,51,null,null,"News Print",null,null,null,null,null,null,null,null,null,42]
[null,null,"Allspice",null,null,null,null,null,null,null,null,null,72,null,null,"Dust",null,null,null,null,null,null,null,null,null,47,null,null,"Trees",null,null,null,null,null,null,null,null,null,48]
[null,null,"Vinegar",null,null,null,null,null,null,null,null,null,65,null,null,"Mite",null,null,null,null,null,null,null,null,null,57,null,null,"Grass",null,null,null,null,null,null,null,null,null,37]
[null,null,"MSG",null,null,null,null,null,null,null,null,null,53,null,null,"Formaldehyde",null,null,null,null,null,null,null,null,null,81,null,null,"Fine point pen",null,null,null,null,null,null,null,null,null,57]
[null,null,"Mint",null,null,null,null,null,null,null,null,null,42,null,null,"Natural Gas",null,null,null,null,null,null,null,null,null,78,null,null,"Wasp Venom",null,null,null,null,null,null,null,null,null,64]
[null,null,"Borax",null,null,null,null,null,null,null,null,null,73,null,null,"Motor Oil",null,null,null,null,null,null,null,null,null,66,null,null,"Clay",null,null,null,null,null,null,null,null,null,76]
[null,null,"Brewers Yeast",null,null,null,null,null,null,null,null,null,53,null,null,"Asphalt",null,null,null,null,null,null,null,null,null,58,null,null,"Latex",null,null,null,null,null,null,null,null,null,95]
[null,null,"Pectin",null,null,null,null,null,null,null,null,null,83,null,null,"Petrol Fumes",null,null,null,null,null,null,null,null,null,57,null,null,"Polyurethane",null,null,null,null,null,null,null,null,null,74]
[null,null,"Caffeinated Drink",null,null,null,null,null,null,null,null,null,84,null,null,"Tobacco",null,null,null,null,null,null,null,null,null,109,null,null,"Scale",null,null,null,null,null,null,null,null,null,94]
[null,null,"Fast Food",null,null,null,null,null,null,null,null,null,101,null,null,"Paints",null,null,null,null,null,null,null,null,null,64,null,null,"Rapeseed Oil",null,null,null,null,null,null,null,null,null,64]
[null,null,"G.M. Foods",null,null,null,null,null,null,null,null,null,75,null,null,"Solvents",null,null,null,null,null,null,null,null,null,39,null,null,"Superheated Fat",null,null,null,null,null,null,null,null,null,45]
[]
[null,"Voltammetric Homeotoxicology Signature Reactivity"]
[null,null,"Voltammetric Heavy Metal Signature Reactivity Graph",null,null,null,null,null,null,null,null,null,null,null,null,null,null,null,null,null,null,null,null,null,null,null,null,null,null,null,null,null,null,null,null,null,null,null,null,null,null,null,null,null,null,null,null,null,null,null,null,null,null,null,null,"Nickel",{"$f":"I641","v":75},50,100]
[null,null,null,null,null,null,null,null,null,null,null,null,null,null,null,null,null,null,null,null,null,null,null,null,null,null,null,null,null,null,null,null,null,null,null,null,null,null,null,null,null,null,null,null,null,null,null,null,null,null,null,null,null,null,null,"Lead",{"$f":"I642","v":96},50,100]
[null,null,null,null,null,null,null,null,null,null,null,null,null,null,null,null,null,null,null,null,null,null,null,null,null,null,null,null,null,null,null,null,null,null,null,null,null,null,null,null,null,null,null,null,null,null,null,null,null,null,null,null,null,null,null,"Antimonite",56,50,100]
[null,null,null,null,null,null,null,null,null,null,null,null,null,null,null,null,null,null,null,null,null,null,null,null,null,null,null,null,null,null,null,null,null,null,null,null,null,null,null,null,null,null,null,null,null,null,null,null,null,null,null,null,null,null,null,"Arsenic",63,50,100]
[null,null,null,null,null,null,null,null,null,null,null,null,null,null,null,null,null,null,null,null,null,null,null,null,null,null,null,null,null,null,null,null,null,null,null,null,null,null,null,null,null,null,null,null,null,null,null,null,null,null,null,null,null,null,null,"Aluminum",62,50,100]
[null,null,null,null,null,null,null,null,null,null,null,null,null,null,null,null,null,null,null,null,null,null,null,null,null,null,null,null,null,null,null,null,null,null,null,null,null,null,null,null,null,null,null,null,null,null,null,null,null,null,null,null,null,null,null,"Barium",{"$f":"I648","v":66},50,100]
[null,null,null,null,null,null,null,null,null,null,null,null,null,null,null,null,null,null,null,null,null,null,null,null,null,null,null,null,null,null,null,null,null,null,null,null,null,null,null,null,null,null,null,null,null,null,null,null,null,null,null,null,null,null,null,"Beryllium",{"$f":"I649","v":83},50,100]
[null,null,null,null,null,null,null,null,null,null,null,null,null,null,null,null,null,null,null,null,null,null,null,null,null,null,null,null,null,null,null,null,null,null,null,null,null,null,null,null,null,null,null,null,null,null,null,null,null,null,null,null,null,null,null,"Cadmium",{"$f":"Report!I650","v":54},50,100]
[null,null,"Voltammetric Foods and Radiation Signature Reactivity Graph",null,null,null,null,null,null,null,null,null,null,null,null,null,null,null,null,null,null,null,null,null,null,null,null,null,null,null,null,null,null,null,null,null,null,null,null,null,null,null,null,null,null,null,null,null,null,null,null,null,null,null,null,"Thallium",{"$f":"I651","v":84},50,100]
[null,null,null,null,null,null,null,null,null,null,null,null,null,null,null,null,null,null,null,null,null,null,null,null,null,null,null,null,null,null,null,null,null,null,null,null,null,null,null,null,null,null,null,null,null,null,null,null,null,null,null,null,null,null,null,"Mercury",{"$f":"I652","v":106},50,100]
[null,null,null,null,null,null,null,null,null,null,null,null,null,null,null,null,null,null,null,null,null,null,null,null,null,null,null,null,null,null,null,null,null,null,null,null,null,null,null,null,null,null,null,null,null,null,null,null,null,null,null,null,null,null,null,"Other Heavy Metals",47,50,100]
[]
[null,null,null,null,null,null,null,null,null,null,null,null,null,null,null,null,null,null,null,null,null,null,null,null,null,null,null,null,null,null,null,null,null,null,null,null,null,null,null,null,null,null,null,null,null,null,null,null,null,null,null,null,null,null,null,"Preservatives",{"$f":"I657","v":52},50,100]
[null,null,null,null,null,null,null,null,null,null,null,null,null,null,null,null,null,null,null,null,null,null,null,null,null,null,null,null,null,null,null,null,null,null,null,null,null,null,null,null,null,null,null,null,null,null,null,null,null,null,null,null,null,null,null,"Sweeteners",{"$f":"I658","v":93},50,100]
[null,null,null,null,null,null,null,null,null,null,null,null,null,null,null,null,null,null,null,null,null,null,null,null,null,null,null,null,null,null,null,null,null,null,null,null,null,null,null,null,null,null,null,null,null,null,null,null,null,null,null,null,null,null,null,"Food Coloring",44,50,100]
[null,null,null,null,null,null,null,null,null,null,null,null,null,null,null,null,null,null,null,null,null,null,null,null,null,null,null,null,null,null,null,null,null,null,null,null,null,null,null,null,null,null,null,null,null,null,null,null,null,null,null,null,null,null,null,"Aflatoxin",69,50,100]
[null,null,null,null,null,null,null,null,null,null,null,null,null,null,null,null,null,null,null,null,null,null,null,null,null,null,null,null,null,null,null,null,null,null,null,null,null,null,null,null,null,null,null,null,null,null,null,null,null,null,null,null,null,null,null,"MSG",57,50,100]
[null,null,null,null,null,null,null,null,null,null,null,null,null,null,null,null,null,null,null,null,null,null,null,null,null,null,null,null,null,null,null,null,null,null,null,null,null,null,null,null,null,null,null,null,null,null,null,null,null,null,null,null,null,null,null,"Food Additives",115,50,100]
[null,null,"Voltammetric Misc. Homeotoxicology Signature Reactivity Graph",null,null,null,null,null,null,null,null,null,null,null,null,null,null,null,null,null,null,null,null,null,null,null,null,null,null,null,null,null,null,null,null,null,null,null,null,null,null,null,null,null,null,null,null,null,null,null,null,null,null,null,null,"Magnet Exposure",{"$f":"I667","v":79},50,100]
[null,null,null,null,null,null,null,null,null,null,null,null,null,null,null,null,null,null,null,null,null,null,null,null,null,null,null,null,null,null,null,null,null,null,null,null,null,null,null,null,null,null,null,null,null,null,null,null,null,null,null,null,null,null,null,"60/50 Cycle Hum",{"$f":"I668","v":79},50,100]
[null,null,null,null,null,null,null,null,null,null,null,null,null,null,null,null,null,null,null,null,null,null,null,null,null,null,null,null,null,null,null,null,null,null,null,null,null,null,null,null,null,null,null,null,null,null,null,null,null,null,null,null,null,null,null,"Microwave Radiation",{"$f":"I669","v":82},50,100]
[null,null,null,null,null,null,null,null,null,null,null,null,null,null,null,null,null,null,null,null,null,null,null,null,null,null,null,null,null,null,null,null,null,null,null,null,null,null,null,null,null,null,null,null,null,null,null,null,null,null,null,null,null,null,null,"Mobile Phone",{"$f":"I670","v":89},50,100]
[null,null,null,null,null,null,null,null,null,null,null,null,null,null,null,null,null,null,null,null,null,null,null,null,null,null,null,null,null,null,null,null,null,null,null,null,null,null,null,null,null,null,null,null,null,null,null,null,null,null,null,null,null,null,null,"Air Conditioning",46,50,100]
[null,null,null,null,null,null,null,null,null,null,null,null,null,null,null,null,null,null,null,null,null,null,null,null,null,null,null,null,null,null,null,null,null,null,null,null,null,null,null,null,null,null,null,null,null,null,null,null,null,null,null,null,null,null,null,"Others Perverse Energies",37,50,100]
[]
[null,null,null,null,null,null,null,null,null,null,null,null,null,null,null,null,null,null,null,null,null,null,null,null,null,null,null,null,null,null,null,null,null,null,null,null,null,null,null,null,null,null,null,null,null,null,null,null,null,null,null,null,null,null,null,"Cosmetics Chemicals",{"$f":"I677","v":45},50,100]
[null,null,null,null,null,null,null,null,null,null,null,null,null,null,null,null,null,null,null,null,null,null,null,null,null,null,null,null,null,null,null,null,null,null,null,null,null,null,null,null,null,null,null,null,null,null,null,null,null,null,null,null,null,null,null,"Metabolism",{"$f":"I678","v":116},50,100]
[null,null,null,null,null,null,null,null,null,null,null,null,null,null,null,null,null,null,null,null,null,null,null,null,null,null,null,null,null,null,null,null,null,null,null,null,null,null,null,null,null,null,null,null,null,null,null,null,null,null,null,null,null,null,null,"Asbestos",72,50,100]
[null,"Every day we are exposed to and burdened by toxic elements which the body has to process and manage.  Because toxins are ubiquitous in the food we eat, medications we take (or have taken), air we breath, and water we drink it makes it difficult if not impossible to avoid.  These toxins can hinder healthy optimal organ functioning and cause stress to the entire body (15,  P57 & 5, p340). Aberrant reactivity responses to the following toxins are not quantitative in their measures and do not diagnosis toxicity, but rather, may indicate an area of stress.  By better understanding the factors which effect our wellness and correlating possible associated symptoms, we are better able to understand the needs of our bodies.   This information should not be used to change, mitigate imply or alter any treatment, dietary, or lifestyle habbits, patterns or choices without consulting with and being suprivesed by a licensed health care professional.    ",null,null,null,null,null,null,null,null,null,null,null,null,null,null,null,null,null,null,null,null,null,null,null,null,null,null,null,null,null,null,null,null,null,null,null,null,null,null,null,null,null,null,null,null,null,null,null,null,null,null,null,null,null,"Environmental",55,50,100]
[null,null,null,null,null,null,null,null,null,null,null,null,null,null,null,null,null,null,null,null,null,null,null,null,null,null,null,null,null,null,null,null,null,null,null,null,null,null,null,null,null,null,null,null,null,null,null,null,null,null,null,null,null,null,null,"Industry",111,50,100]
[null,null,null,null,null,null,null,null,null,null,null,null,null,null,null,null,null,null,null,null,null,null,null,null,null,null,null,null,null,null,null,null,null,null,null,null,null,null,null,null,null,null,null,null,null,null,null,null,null,null,null,null,null,null,null,"Formaldehyde",83,50,100]
[null,null,null,null,null,null,null,null,null,null,null,null,null,null,null,null,null,null,null,null,null,null,null,null,null,null,null,null,null,null,null,null,null,null,null,null,null,null,null,null,null,null,null,null,null,null,null,null,null,null,null,null,null,null,null,"Diesel and Gas",82,50,100]
[null,null,null,null,null,null,null,null,null,null,null,null,null,null,null,null,null,null,null,null,null,null,null,null,null,null,null,null,null,null,null,null,null,null,null,null,null,null,null,null,null,null,null,null,null,null,null,null,null,null,null,null,null,null,null,"PCB",{"$f":"I687","v":80},50,100]
[null,null,null,null,null,null,null,null,null,null,null,null,null,null,null,null,null,null,null,null,null,null,null,null,null,null,null,null,null,null,null,null,null,null,null,null,null,null,null,null,null,null,null,null,null,null,null,null,null,null,null,null,null,null,null,"Solvents",{"$f":"I688","v":41},50,100]
[null,null,null,null,null,null,null,null,null,null,null,null,null,null,null,null,null,null,null,null,null,null,null,null,null,null,null,null,null,null,null,null,null,null,null,null,null,null,null,null,null,null,null,null,null,null,null,null,null,null,null,null,null,null,null,"Pharmaceutical",{"$f":"I689","v":123},50,100]
[null,null,null,null,null,null,null,null,null,null,null,null,null,null,null,null,null,null,null,null,null,null,null,null,null,null,null,null,null,null,null,null,null,null,null,null,null,null,null,null,null,null,null,null,null,null,null,null,null,null,null,null,null,null,null,"Insecticide",114,50,100]
[null,null,null,null,null,null,null,null,null,null,null,null,null,null,null,null,null,null,null,null,null,null,null,null,null,null,null,null,null,null,null,null,null,null,null,null,null,null,null,null,null,null,null,null,null,null,null,null,null,null,null,null,null,null,null,"Other Toxins",45,50,100]
[]
[]
[]
[]
[]
[]
[]
[]
[null,"Voltammetric Heavy Metal Signature Reactivity"]
[null,null,"Item",null,null,null,null,null,"Value",null,null,null,null,"General Heavy Metal Information"]
[null,null,"Nickel",null,null,null,null,null,75,null,null,null,null,"Nickel is a trace element, required in minute quantities by the human body but in excess can be toxic. Possible sources: cigarette smoke, electronic plating, mining, and steel manufacture industries. Symptoms of toxicity: dermatitis, and pulmonary inflammation. Long term or chronic toxicity may lead to liver necrosis, nephrotoxicity, and carcinoma (16,  p25)."]
[null,null,"Lead",null,null,null,null,null,96,null,null,null,null,"Lead is a highly toxic element that is ubiquitous in our environment. Pb is transported through the placenta to the fetus and is found in human breast milk. Possible Sources: occupational exposure in the fields of mining, refineries, production of storage batteries, ammuntition, solder, building materials, cable sheeting, foils, welding, hair darkening agents/dyes, old leaded paint (chips/dust), drinking water, some fertilizers, industrial pollution, lead-glazed pottery, newsprint, and some candles.  Symptoms of toxicity: hyperactivity and learning problems in children, ADD and ADHD, poor memory, cognitive function, nerve conduction, and metabolism of Vit D, anemia, immune dysregulation, headaches, gastric distress, fatigue, weight loss, cognitive dysfunction, decreased coordination, depression, anxiety, and aberrant behavior (16,  p21). "]
[null,null,"Antimonite",null,null,null,null,null,56,null,null,null,null,"Anitmony is a nonessential element that is chemically similar to arsneic, but generally  less toxic  than arsenic. Sources: food, smoking, gunpowder, textile industry (fire resistant fabrics), metal alloy, some antihelminthic and antiprotozoic drugs, manufacture of paints, glass, ceramics, solder, batteries, bearing, metals, semiconductors, and used as a antiphotolytic agent in plastic and rubber products. Signs and sympoms include: fatigue, muscle weakness, joint pain, altered EKG, myopathy, nausea, low back pain, headache, and metallic taste, hemolytic anemia, myoglobinuria, hematuria, ADD/ADHD and autism, renal failure. Transdermal absorption can lead to antimony spots which resemble chicken pox (16, p19)."]
[null,null,"Arsenic",null,null,null,null,null,63,null,null,null,null,"Arsnic an accumulate in hair, nails, skin, thyroid gland, bone and gastrointestinal tract and may affect the peripheral nervous, cardiovascular and hematopoietic systems. Sources include: insecticides, well water, smog, shellfish, exterior wood preservatives, combustion of fossil fuel, copper smelting, industrial exposure,and manufacture of electronic components. Symptoms of toxicity: malaise, muscle weakness, vomiting, diarrhea, dermatitis (hyperpigmentation), skin cancer and peripheral neuropathies  (16, p19)."]
[null,null,"Aluminum",null,null,null,null,null,62,null,null,null,null,"Aluminum is one of the most abundant metallic elements due to its light weight, tensile strength and corrosion-resistant oxide coat. It is neurotoxic at high levels, but low levels of accumulation may not elicit immediate symptoms. Sources include: packing materials, containers, kitchen utensils, automobile and airplane components, and building materials, drinking water, skin tanning solution, mordants, coagulating agents and cosmetics, marble cement, concrete and paper and enamel industries, varnishes, textiles, cosmetics, antacids, baking powder, processed cheese and other foods, some vaccines, and colloidal mineral products. Symptoms of toxicity: fatigue, headache and symptoms of phosphate depletion, toxic levels of ammonia in tissues, disruption of protein synthesis and catabolism, pre-senile dementia, Alzheimer's disease, behavioral/learning disorders such as ADD, ADHD and autism,and renal problems (16,  p 24)."]
[null,"Voltammetric Heavy Metal Signature Reactivity"]
[null,null,"Item",null,null,null,null,null,"Value",null,null,null,null,"General Heavy Metal Information"]
[null,null,"Barium",null,null,null,null,null,66,null,null,null,null,"Barium is classified as an alkaline earth metal, is a chemical element, and has not been established to be an essential element. Elevated levels may interfere with calcium metabolism and potassium retention. Possible sources: Ba salts, flour, potatoes, some types of nuts, and is consumed for diagnostic medical tests. Symptoms of toxicity: muscular and myocardial stimulation, tingling in the extremeities, and loss of tendon reflexes (16,  p37). "]
[null,null,"Beryllium",null,null,null,null,null,83,null,null,null,null,"Beryllium is a biological antagonist of magnesium whose primary route of exposure is inhalation. Possible sources: electronic components, metal alloys used in aircraft and aerospace applications, bearing sleeves, optical lens coatings, flourescent lights, tobacco, and smoking. Symptoms of  toxicity: immune dysregulation, hypersensitivity reactions, chronic beryllium disease, rickets, damage to liver, kidney, lungs, and skin, syspnea, cough and pumonary distress (16, p20)."]
[null,null,"Cadmium",null,null,null,null,null,54,null,null,null,null,"Cadmium is a toxic heavy metal that has no metabolic function in the body. Toxicity is common among welders and construction workers. Possible sources: occupational inhalation, contaminated food (e.g. fruits, oysters and anchovies), water, cigarette smoking, fungicides, rubber products, welding rods, silver solders, old metal refrigerator shelves (used as grills), and refined carbohydrates. Symptoms of toxicity: hypertension, hypotension, adverse affects on the kidneys, lungs, testes, arterial walls, bones, enzymatic reactions, glutathione depletion, microcytic hypochromic anemia, proteinuria, increased urinary calcium and phosphorus, functional zinc deficiency, fatigue, weight loss, osteomalacia, and lumbar pain (16,  p 21)."]
[null,null,"Thallium",null,null,null,null,null,84,null,null,null,null,"Thallium is a highly toxic element which, like lead and mercury, accumulates in many body tissues. Occurs naturally in some minerals, magmatic and sedimentary rock and consequently in soil, water, and air. Toxicity can have a long latency period before clinical symptoms become apparent. Possible Sources: lenses, prisms, low temperature thermometers, preparation of high density liquids, rodenticides, pesticides, foods (marine organisms), tobacco, contaminated water, electonics components, fly ash, cement dust, and some fertilizers. Symptoms of toxicity: sleep disturbances, cardiac, optical, dermatological, liver, GI, and kidney dysfunctions, albuminuria, and alopecia (16, p 23)."]
[null,null,"Mercury",null,null,null,null,null,106,null,null,null,null,"Mercury is highly toxic, however, some people are more effective in detoxification of Hg. Individuals vary greatly in sensitivity and tolerance to Hg burden. Possible sources: dental amalgams, fish, contaminated water supplies, hemorrhoidal preparations, some vaccines, skin lightening agents, instruments (thermometers, electrodes, and batteries), combustion of fossil fuels, hospital wastes, fertilizers, paper/pulp and gold industries. Symptoms of toxicity: supression of selenium function, immune dysregulation, loss of appetite, decreased senses of touch, hearing and vision, fatigue, depression, emotional instability, peripheral numbness and tremors, poor memory and cognitive dysfunction, neuromuscular disorders, and acute myocardial infarction (16,  p22)."]
[null,null,"TIN          (Sn)      Other Heavy Metals",null,null,null,null,null,47,null,null,null,null,"Depending on the form of tin it is a potentially toxic element (e.g. organic tin). Sources include: food, dental amalgams, cosmetics, preservatives, food and beverage containers, pewter, and bronze and anticorrosive platings. Symptoms of toxicity: skin, eye, and GI tract irritation, muscle weakness, anemia, and neurodegenertive disease (16, p 25). Heavy metals in general become toxic when they are not metabolized by the body and accumulate in the soft tissues. Heavy metals may enter the human body through food, water, air, or absorption through the skin. Heavy metals are accumulated when they come in contact with humans in agriculture, manufacturing, pharmaceutical, industrial, or residential settings. Industrial exposure accounts for a common route of exposure in adults (16)."]
[]
[null,"Voltammetric Foods and Radiation Signature Reactivity"]
[null,null,"Item",null,null,null,null,null,"Value",null,null,null,null,"General Toxicity Information"]
[null,null,"Food Preservatives",null,null,null,null,null,52,null,null,null,null,"Preservatives are chemical compounds that have fungistatic, bacteriostatic, antimicrobicidal, or antioxidant properties used for the preservation of food.  Most packaged and processed foods  contain preservatives (17, p64-5). The most commonly used preservatives in food are sodium benzoate, 4-hydroxybenzoate esters, and sulfur dioxide. Various sulfites are commonly used in prepared foods as well (5, p1488). Preservative toxicity and sensitivity can cause symptoms of headaches, skin rashes, increase in blood pressure, stomach aches, abdominal distension, mood swings in children, and impaired cognition and learning.  Some preservatives have been proven to have mutagenic effects on DNA and are carcinogenic. Toxicity generally affects the liver, lungs, and kidney's (18)."]
[null,null,"Aritificial Sweeteners",null,null,null,null,null,93,null,null,null,null,"Sugar substitutes such as aspartame are found in sugar free items like diet foods, sodas, chewing gum, and yogurt.  Adverse effects of artificial sweeteners may include headache, change in mood, change in vision, convulsions, seizures, sleep problems/insomnia, change in heart rate, hallucination, abdominal cramps/pain, memory loss, rash, nausea, vomiting, fatigue, weakness, dizziness/poor equilibrium, diarrhea, hives, and joint pain (19).  Aspartame is being investigated as a possible cause of strokes, alzheimers disease, ALS, Huntingtons, as well as other rare disorders of the neurological system. Although there is little evidence that aspartame causes these conditions there is growing evidence that they can aggravate and precipitate them in sensitive individuals. Scientific evidence is far too strong to ignore the possibility that excitotoxic food additives, like aspartame, may cause these conditions to appear sooner or to a more serious degree (20, pxxi)."]
[null,null,"Food Coloring",null,null,null,null,null,44,null,null,null,null,"Artificial coloring  is widely used in foods, beverages, and medications. The most common coloring agents are azo dyes; tartrazine (orange), sunset yellow, amaranth, and coccine (red), and the non-azo dye pate blue (5, p1488). Food dyes are synthetic chemicals which often contain lead and are known to have neuro-degenerative effects.  Symptoms of toxicity may include hyperactivity, restlessness, and attention problems in some children – particularly those with ADHD.  Toxicity may accumulate in the brain, liver, pancreas, lung and thyroid (18)."]
[null,null,"Aflatoxin",null,null,null,null,null,69,null,null,null,null,"Aflatoxins are naturally occurring mycotoxins that are in the air, soil, and are also found on or in living or dead plant and animals throughout the world (21, p17A).  These mycotoxins are common contaminants of wheat, corn, rice, peanuts, fruit and vegetables (21, vii). Aflatoxins are produced by many species of aspergillus (a fungus) (21, p 14). Aflatoxins are acutely toxic and highly carcinogenic substances (21, p55) (17, p66-7) (5, p1125). Aflatoxin toxicity includes a broad range of symptoms depending upon dosage, including vomiting, abdominal pain, hemorrhage, pulmonary edema, acute liver damage (including fatty change), loss of function of the digestive tract, convulsions, cerebral edema and death (21) . "]
[null,null," Monosodium    Glutamate (MSG)",null,null,null,null,null,57,null,null,null,null,"Monosodium Glutamate is an excitotoxin, a food preservative, and food enhancer.  It is commonly used in most packaged foods.  MSG is a major cause of treatable and preventable illnesses such as headaches, asthma, epilepsy, heart irregularities, depression, rage reaction, ADD and ADHD (23, pi). Symptoms include; asthma, skin rash, sneezing, flushing, tingling, chest tightness, palpitations, headaches, arthritislike symptoms, depression, mental confusion, insomnia, and restlessness (23, p 52). "]
[null,null,"Food Additives",null,null,null,null,null,115,null,null,null,null,"Food additives, otherwise known as flavor enhancers and food preservatives, are in most packaged foods. They have infiltrated our food supply since the 1950's and only now are we beginning to study and understand the side effects (17, p64-5). Artificial dyes and preservatives are currently widely used in foods, beverages, and drugs (5, p1488).  A great number of synthetic food additives remain in use that are being linked to such diseases as depression, asthma or other allergy, hyperactivity or learning disabilities in children, and migraine headaches (5, p470).                                                                                       "]
[]
[]
[null,"Voltammetric Foods and Radiation Signature Reactivity"]
[null,null,"Item",null,null,null,null,null,"Value",null,null,null,null,"General Toxicity Information"]
[null,null,"Magnet Exposure",null,null,null,null,null,79,null,null,null,null,"Electric and magnetic fields (EMF's) are invisible toxins associated with the production, transmission, and use of electric power such as those associated with high-voltage transmission lines, secondary power lines, home wiring, lighting and appliances (24). The reported symptoms of Electromagnetic Hypersensitivity Syndrome include; headache, fatigue, stress, sleep disturbances, skin symptoms (like prickling, burning sensations and rashes), pain and ache in muscles, and many other health problems (25).  "]
[null,null,"60/50 Cycle Hum",null,null,null,null,null,79,null,null,null,null,"The 50/60 Hz cycle hum is the most commonly studied power frequency. Electric appliances and power lines emit 50/60 Hz EMF.  While studies remain ongoing, there is much evidence to support that this frequency can cause stress to the human body.  Studies have shown that DNA can be mutated and corrupted by these frequencies. Symptoms can range from sleep, mood, behavioral, and learning disorders to degenerative conditions (26)."]
[null,null,"Microwave Radiation",null,null,null,null,null,82,null,null,null,null,"Many governments around the world have issued international warnings on the health hazards (both biological and environmental) of microwave ovens and similar frequency electronic devices (27). The side effects of exposure have yet to be proven but are believed to range from sleep disorders,  fatigue, memory concentration deficits, increased irritability  and  reproductive disorders, to many degenerative diseases (28, p36-7)."]
[null,null,"Mobile Phone",null,null,null,null,null,89,null,null,null,null,"Electromagnetic fields (EMF), in both ELF (extremely low frequency) and radio frequency (RF) ranges, activate the cellular stress response and increased levels of stress proteins.  Induction of the stress response involves activation of DNA, and despite the large difference in energy between ELF and RF, the same cellular pathways respond in both frequency ranges (29). Mobile phone radiation emitted from cellular telephones and transmitter towers may have harmful and degenerative side effects to the human body.  Increases in brain activity from phone usage may contribute to symptoms of sleep and mood disorders. Mobile phone radiation may increase the risk of brain tumors and neurological disorders (30)."]
[null,null,"Air Conditioning",null,null,null,null,null,46,null,null,null,null,"Freon was used primarily as a chlorofluorocarbon (CFC) cleaning  solvent. It also had  applications as a refrigerant in commercial/industrial air conditioning and industrial process cooling, as a chemical intermediate in the manufacture of high-temperature lubricant, as a foaming or blowing agen, as an intermediate in the manufacture of fluorocarbon resins, and as a solvent or active ingredient in aerosol formulations. Freon toxicity can cause arrhythmia (irregular heartbeat) and adverse effects on psychomotor performance. Symptoms of toxicity are dizziness, respiratory and cardiac stress (31). "]
[null,null,"Others Perverse Energies",null,null,null,null,null,37,null,null,null,null,"Subtle perverse energies such as those created by both natural magnetic fields and man made EMF can cause dissension in the biofield.  While studies remain ongoing, many believe these fields to cause symptoms ranging from sleep, mood and reproductive disorders to many degenerative conditions which commonly plague society today. "]
[]
[]
[null,"Voltammetric Misc. Homeotoxicology Signature Reactivity"]
[null,null,"Item",null,null,null,null,null,"Value",null,null,null,null,"General Toxicity Information"]
[null,null,"Cosmetics Chemicals",null,null,null,null,null,45,null,null,null,null,"People are exposed to cosmetic chemicals by breathing in sprays and powders, swallowing chemicals on the lips or hands or absorbing them through the skin.  Biomonitoring studies have found cosmetics ingredients – like phthalate plasticizers, paraben preservatives, the pesticide triclosan, synthetic musks, and sunscreens – as common pollutants in men, women and children. Many of these chemicals are potential hormone disruptors. Products commonly contain penetration enhancers to drive ingredients deeper into the skin. Studies find health problems in people exposed to common fragrance and sunscreen ingredients, including elevated risk for sperm damage, feminization of the male reproductive system, and low birth weight in girls (32).  "]
[null,null,"Metabolism",null,null,null,null,null,116,null,null,null,null,"Metabolic toxicity derives from the body's inability to breakdown and excrete different types of toxins found in food, medicine, and the environment (17,  p37). Metabolic toxins often store themselves in soft tissue and can accumulate over a lifetime.  The lungs (17, p317), liver (17, p263), endocrine system, nervous system and brain are the most common areas for bioaccumulation (17, p299). Symptoms of toxicity can present as any illness and are most commonly headaches, migraines, abdominal pain, digestive problems, weight gain, diabetes, and degenerative disorders (17)."]
[null,null,"Asbestos",null,null,null,null,null,72,null,null,null,null,"Asbestos is a fibrous mineral that was commonly used as a fire retardant and in insulation.  it was incorporated into some 3000 different products in our industrialized society (33, p1 &17). Asbestos has been studied and proven to have potentially fatal side effects.  Symptoms mostly include respiratory distress and many different forms of degenerative lung conditions (17, p46-48) (32, pix)."]
[null,null,"Environmental",null,null,null,null,null,55,null,null,null,null,"Environmental toxicity is the byproduct of indirect industrial toxic exposure.  Toxins  from the burning of coal as well as many different heavy metals and petrochemicals in the air (17, p37) and soil (17, p40-44) can accumulate in the soft tissues of the body. Symptoms of toxicity are general and may contribute to the development of many degenerative conditions. The lungs (17, p317), liver (17, p263), endocrine system, and nervous system/brain are the most common areas for bioaccumulation (17, p299)."]
[null,null,"Industry",null,null,null,null,null,111,null,null,null,null,"Industrial toxicity is the result of more direct toxicity most often from occupational exposure.  Industrial toxins are generally comprised of heavy metals and petrochemicals commonly used in manufacturing (17, p44-8). Symptoms of toxicity are general and may contribute to the development of many degenerative conditions. The lungs (17, p317), liver (17, p263), endocrine system, and nervous system/brain are the most common areas for bioaccumulation (17, p299)."]
[null,null,"Formaldehyde",null,null,null,null,null,83,null,null,null,null,"The most extensive use of formaldehyde is in the production of resins which are used as an adhesive in the manufacture of particle-board, plywood, furniture and other wood products for the production of curable moulding materials (appliances, electric controls, telephones, wiring services), surface coatings, nitrogen fertilizers, the textile, leather, rubber and cement industries, binders for foundry sand, insulating materials, abrasive paper, brake linings, lubricating oils, plasticizers, detergents,  soft and rigid foams, plastics, audio and video electronic equipment, dyes, tanning agents, crop protection agents, animal feeds, perfumes, vitamins, flavourings, as a preservative and  disinfectant in drugs and vaccines, cosmetics, soaps, shampoos, hair preparations, deodorants, lotions, make-up, mouthwashes and nail products (34, p45-8). Formaldehyde can cause irritation of the eyes, nose, throat and sinuses.  Resulting symptoms include; burning, dryness, redness and itching of eyes, nasal dryness, soreness, runnines, sore or dry throat, and sinus congestion or post-nasal drip. Secondary effects associated with these symptoms may include; cough, chest tightness, excessive phlegm production, repeated sinus infections, eye infections and possibly bronchitis. In very sensitive individuals these respiratory symptoms may progress to asthma and for those with existing asthma exposure to formaldehyde may precipitate asthmatic attacks. Formaldehyde can also affect the central nervous system (CNS). Common CNS symptoms associated with formaldehyde exposures in buildings include frequent headaches, unusual fatigue, lassitude and disturbed sleep (34). \n\n"]
[null,null,"Diesel and Gas",null,null,null,null,null,82,null,null,null,null,"Petrochemical toxicity, including diesel and gas, accumulates in our bodies through food, air, and soil (17, p37) and thus exposure is unavoidable (17, p317). Symptoms can include headaches, dizziness, nausea, respiratory distress, and immune system compromise (17)."]
[]
[null,"Voltammetric Misc. Homeotoxicology Signature Reactivity"]
[null,null,"Item",null,null,null,null,null,"Value",null,null,null,null,"General Toxicity Information"]
[null,null,"polychlorinated biphenyls PCB's",null,null,null,null,null,80,null,null,null,null,"Polychlorinated biphenyls (PCB's) are a group of synthetic organic chemicals that can cause a number of different harmful effects. PCB's do not readily break down in the environment and thus may remain there for very long periods of time and continue to have harmful effects. People can be exposed to PCB's by eating contaminated food. The main dietary sources of PCB's are fish (especially sport fish caught in contaminated lakes or rivers), as well as meat and dairy products. Another way to become exposed to PCB's is through contaminated well water or air near a waste site.  Signs and symptoms  of toxicity: skin conditions, such as acne and rashes, irritation of nose and lungs, gastrointestinal discomfort, changes in blood and liver, and depression and fatigue (35, p1-6)."]
[null,null,"Solvents",null,null,null,null,null,41,null,null,null,null,"Mild solvent toxicity is common due to many of the chemicals used in cosmetics, construction materials, and fabrics. Most often toxicity is the result of concentrated exposure.  Symptoms range from dizziness and headaches to cognitive impairment and nausea (17, p70)."]
[null,null,"Pharmaceutical",null,null,null,null,null,123,null,null,null,null,"Many pharmaceutical drugs contain very toxic compounds which can bioaccumulate in the soft tissues of the body.  Most pharmaceuticals cause mild to severe side effects due to the toxicity from the accumulation which can hinder healthy organ function (17,  p70-1, p299)."]
[null,null,"Insecticide",null,null,null,null,null,114,null,null,null,null,"Insecticides are a specific type of pesticide that are highly toxic to man (36, p13). Many studies have shown exposure can lead to estrogenification and imbalanced hormonal homeostasis. Toxicity is  most often the result of environmental exposure from polluted air, water, soil, and food (17, p57-61). The lungs (17, p317), liver (17, p263), endocrine system, and nervous system/brain are the most common areas for bioaccumulation (17, p299)."]
[null,null,"Other Toxins",null,null,null,null,null,45,null,null,null,null,"In today's industrialized, mechanized, chemically processed world, humans are exposed to toxicities that the body has never before encountered.  Toxicity is almost unavoidable as we are infiltrated through food, water, soil, and air. The most common group is organochlorines that dominate all lists of global contaminants and environmental health hazards. Organochlorines are produced when chlorine is used in the chemical, paper, water treatment, and other industries, and they include a variety of familiar and obscure plastics, pesticides, solvents, refrigerants, and accidental by-products (37, p vii)."]
[]
[]
[null,"Voltammetric Emotional Imponderable Signature Reactivity"]
[]
[null,"It is believed by some, that emotional imbalances and stress may be the most important factors when trying to achieve and maintain optimal health and wellness. Many of us have experienced emotional trauma and developed negative emotional patterns throughout our lives, which contribute to our physical, mental, and spiritual stress (5, p100-101 & p646). While a voltammetric aberrant signature reactivity response does not offer a quantitative measure or diagnose any condition,  by understanding the emotions which we react to, we are better able to understand ourselves.  A voltammetric aberrant signature reaction may be an indication of imbalanced emotions. Emotions can be in excess or deficient, supressed or expressed. Sometimes these emotions can be so foundational to our personality, ego, and nature that we are unaware of the imbalance. As you attempt to interpret the 'reason' for the reactivity response, remember to be open minded and non judgmental. This information should not be used to change, mitigate imply or alter any treatment, dietary, or lifestyle habbits, patterns or choices without consulting with and being suprivesed by a licensed health care professional.  "]
[]
[]
[]
[]
[]
[]
[]
[]
[]
[]
[]
[]
[]
[]
[]
[]
[]
[]
[]
[]
[]
[]
[]
[]
[]
[]
[]
[]
[]
[]
[]
[]
[]
[]
[]
[]
[]
[]
[]
[]
[]
[]
[]
[null,"Voltammetric Emotional Imponderable Signature Reactivity"]
[]
[null,null,"Item",null,null,null,null,null,null,null,null,null,"Value",null,null,"Item",null,null,null,null,null,null,null,null,null,"Value",null,null,"Item",null,null,null,null,null,null,null,null,null,"Value"]
[null,null,"Frustration",null,null,null,null,null,null,null,null,null,81,null,null,"Shock",null,null,null,null,null,null,null,null,null,81,null,null,"Identity Conflict",null,null,null,null,null,null,null,null,null,76]
[null,null,"Betrayal",null,null,null,null,null,null,null,null,null,38,null,null,"Manic uncontrollable",null,null,null,null,null,null,null,null,null,94,null,null,"Submissive",null,null,null,null,null,null,null,null,null,69]
[null,null,"Abandonment",null,null,null,null,null,null,null,null,null,80,null,null,"Delusion",null,null,null,null,null,null,null,null,null,87,null,null,"Careless",null,null,null,null,null,null,null,null,null,37]
[null,null,"Confusion",null,null,null,null,null,null,null,null,null,111,null,null,"Easily Distracted",null,null,null,null,null,null,null,null,null,62,null,null,"ESP",null,null,null,null,null,null,null,null,null,75]
[null,null,"Autistic",null,null,null,null,null,null,null,null,null,72,null,null,"Vanity",null,null,null,null,null,null,null,null,null,92,null,null,"Laughter",null,null,null,null,null,null,null,null,null,69]
[null,null,"Apathy",null,null,null,null,null,null,null,null,null,70,null,null,"Observant",null,null,null,null,null,null,null,null,null,58,null,null,"Hopeless despair",null,null,null,null,null,null,null,null,null,84]
[null,null,"Steadfast Loyal",null,null,null,null,null,null,null,null,null,77,null,null,"Obsessive",null,null,null,null,null,null,null,null,null,65,null,null,"Curiosity",null,null,null,null,null,null,null,null,null,72]
[null,null,"Greed",null,null,null,null,null,null,null,null,null,72,null,null,"Passivity",null,null,null,null,null,null,null,null,null,109,null,null,"Self Doubt",null,null,null,null,null,null,null,null,null,87]
[null,null,"Compulsive",null,null,null,null,null,null,null,null,null,53,null,null,"Ecstasy",null,null,null,null,null,null,null,null,null,76,null,null,"Perfectionist",null,null,null,null,null,null,null,null,null,85]
[null,null,"Lust",null,null,null,null,null,null,null,null,null,50,null,null,"Inadequacy",null,null,null,null,null,null,null,null,null,61,null,null,"Desire for things to be different",null,null,null,null,null,null,null,null,null,57]
[null,null,"Religious Conflict",null,null,null,null,null,null,null,null,null,73,null,null,"Jealousy",null,null,null,null,null,null,null,null,null,76,null,null,"Dominating",null,null,null,null,null,null,null,null,null,84]
[null,null,"Hesitation",null,null,null,null,null,null,null,null,null,89,null,null,"Enthusiasm",null,null,null,null,null,null,null,null,null,71,null,null,"Aggression",null,null,null,null,null,null,null,null,null,87]
[null,null,"Sadness",null,null,null,null,null,null,null,null,null,89,null,null,"Misunderstood",null,null,null,null,null,null,null,null,null,81,null,null,"Guilt",null,null,null,null,null,null,null,null,null,90]
[null,null,"Psychic Pain",null,null,null,null,null,null,null,null,null,85,null,null,"Depression",null,null,null,null,null,null,null,null,null,91,null,null,"Antagonism",null,null,null,null,null,null,null,null,null,86]
[null,null,"Bargaining",null,null,null,null,null,null,null,null,null,72,null,null,"Awe",null,null,null,null,null,null,null,null,null,99,null,null,"Worry",null,null,null,null,null,null,null,null,null,86]
[null,null,"Unaware",null,null,null,null,null,null,null,null,null,80,null,null,"Reckless",null,null,null,null,null,null,null,null,null,69,null,null,"Need to change",null,null,null,null,null,null,null,null,null,80]
[null,null,"Focus mind",null,null,null,null,null,null,null,null,null,103,null,null,"Projection",null,null,null,null,null,null,null,null,null,85,null,null,"Judgmental",null,null,null,null,null,null,null,null,null,93]
[null,null,"Unrealistic",null,null,null,null,null,null,null,null,null,57,null,null,"Shame",null,null,null,null,null,null,null,null,null,64,null,null,"Resistance To Change",null,null,null,null,null,null,null,null,null,60]
[null,null,"Denial",null,null,null,null,null,null,null,null,null,72,null,null,"Monotony",null,null,null,null,null,null,null,null,null,89,null,null,"Pride",null,null,null,null,null,null,null,null,null,74]
[null,null,"Addictive",null,null,null,null,null,null,null,null,null,78,null,null,"Spirituality",null,null,null,null,null,null,null,null,null,77,null,null,"Rejection",null,null,null,null,null,null,null,null,null,50]
[null,null,"Resentment",null,null,null,null,null,null,null,null,null,92,null,null,"Impulsive",null,null,null,null,null,null,null,null,null,96,null,null,"Anxiety",null,null,null,null,null,null,null,null,null,77]
[null,null,"Sensuality",null,null,null,null,null,null,null,null,null,82,null,null,"Rationalization",null,null,null,null,null,null,null,null,null,79,null,null,"Power",null,null,null,null,null,null,null,null,null,87]
[null,null,"Anger",null,null,null,null,null,null,null,null,null,86,null,null,"Awareness",null,null,null,null,null,null,null,null,null,100,null,null,"Fear",null,null,null,null,null,null,null,null,null,82]
[null,null,"Nervousness",null,null,null,null,null,null,null,null,null,69,null,null,"Joy",null,null,null,null,null,null,null,null,null,103,null,null,"Sexuality",null,null,null,null,null,null,null,null,null,94]
[]
[]
[null," Reference list"]
[null,1,null,"Thibodeau, G., Patton, K. (2008). Structure and Function of the body (10th ed.). Mosby Elsevier. "]
[null,2,null,"Standring, S. (2008). Gray's anatomy : the anatomical basis of clinical practice Elsevier Inc. "]
[null,3,null,"Blumenfeld, Hal. (2010). Neuroanatomy through clinical cases. Sinauer Associates. "]
[null,4,null,"Maciocia, Giovanni. (2005). The Foundations of Chinese Medicine: A Comprehensive Text for Acupuncturists and Herbalists (2nd ed.). Elsevier Ltd."]
[null,5,null,"Pizzorno, J., Murray, M. (2006). Textbook of Natural Medicine.(3rd ed.). Churchill Livingstone Elsevier. "]
[null,6,null,"Webb, G. (2008). Nutrition, A Health Promotion approach (3rd ed.). Hodder Arnold."]
[null,7,null,"Escott-Stump, S. (2012). Nutrition and Diagnosis-Related Care (7th ed.). Lippincott Williams & Wilkins."]
[null,8,null,"Stipanuk, M. (2006). Biochemical, Physiological and Molecular Aspects of Human Nutrition (2nd ed.).  Elsevier Saunders."]
[null,9,null,"Bora, C. (2010, July 15). Lipase Deficiency.  Retrieved from http://www.buzzle.com/articles/lipase-deficiency.html "]
[null,10,null,"Library of congress cataloging in publication data. (1976). Human Physiology and the Environment in Health and Disease. Scientific America. "]
[null,11,null,"Besser, M., Thorner, M. (2002). Comprehensive Clinical endocrinology (3rd ed.). Elsevier Science Ltd."]
[null,12,null,"Liverman, C. (2004). Testosterone and aging: clinical research directions, National Academies Press."]
[null,13,null,"Zingg, H., Borque, C., Bichet, D. (1998). Vasopressin and Oxytocin Molecular, Cellular, and Clinical Advances. Advances in Experimental medicine and biology (vol. 449). New York: Plenum press."]
[null,14,null,"Krogsgaard-Larsen, P., Stromgaard, K., Madsen, U. (2010). Textbook of Drug Design and Discovery (4th ed.). USA: Taylor and Francis Group."]
[null,15,null,"Library of congress cataloging in publication data. (1976). Human Physiology and the Environment in Health and Disease. Scientific America. "]
[null,16,null,"Quig, D.(1998). Comprehensive Interpretations for Hair Elements from Al To Zr. Doctor’s data Inc. Chicago."]
[null,17,null,"Hodgson, E. (2004). A Textbook of Modern Toxicology (3rd ed.). New Jersey: John Wiley and Sons, Inc."]
[null,18,null,"Bhawsar, S. (2001, Mar 1). Toxic Effects of Food Preservatives. Retrieved from http://www.biotecharticles.com/Toxicology-Article/Toxic-Effects-of-Food-Preservatives-695.html"]
[null,19,null,"Mercola, J (n.d.). Artificial sweeteners: more sour than you ever imagined. Retrieved from http://mercola.fileburst.com/PDF/SpecialReports/Aspartame%20Special%20Report.pdf "]
[null,20,null,"Blaylock, R. (1998). Excitotoxins: The taste that kills. Retrieved from http://www.netlibrary.com.foyer.swmed.edu/urlapi.asp?action=summary&v=1&bookid=33702 "]
[null,21,null,"Goldblatt, L. (Ed) (1969). Aflatoxin, Scientific Background, control, and implications. New York : Academic Press."]
[null,22,null,"Trucksess, M., Pohland, A. (Ed’s). (2001). Mycotoxin Protocols. Methods in Molecular biology, Vol 157. New Jersey: Humana Press Inc. "]
[null,23,null,"Schwartz, G. (1999). In Bad Taste. Retrieved from http://www.netlibrary.com.foyer.swmed.edu/urlapi.asp?action=summary&v=1&bookid=33695 "]
[null,24,null,"Mercola, J. (n.d.).Electromagnetic Field (EMF)- Hazardous to our health? Retrieved from http://emf.mercola.com/sites/emf/emf-dangers.aspx "]
[null,25,null,"Wikipedia. (n.d.). Electromagnetic  Hypersensitivity http://en.wikipedia.org/wiki/Electromagnetic_hypersensitivity"]
[null,26,null,"WHO International Agency for Research on Cancer. (2002, March 7). IARC Monographs on the Evaluation of Carcinogenic Risks to Humans, Vol. 80, Non-Ionizing Radiation. Retrieved from http://monographs.iarc.fr/ENG/Monographs/vol80/volume80.pdf  "]
[null,27,null,"Mercola, J. (2010, May 18). Why did the Russians Ban an Appliance Found in 90% of American Homes? Retrieved from http://articles.mercola.com/sites/articles/archive/2010/05/18/microwave-hazards.aspx"]
[null,28,null,"Michaelson, S. (1977).  Microwave and Radiofrequency Radiation. Distributed by the regional office for Europe. Copenhagen: WHO."]
[null,29,null,"Blank, M., Goodman, R. (2009). Electromagnetic fields stress living cells. Pathophysiology, Volume 16 (Issue 2), Pages 71-78. Retrieved from doi:10.1016/j.pathophys.2009.01.006 "]
[null,30,null,"Mercola, J. (2000, Dec 17).  \"If Mobile Phones Were a Type of Food, They Simply Would Not be Licensed\" Retrieved from http://articles.mercola.com/sites/articles/archive/2000/12/17/mobile-phones-part-five.aspx"]
[null,31,null,"Office of Pollution, Prevention, and Toxics U.S. EPA. (1994, Aug). Chemical Summary for Freon 113. Retrieved from http://www.epa.gov/chemfact/s_freon.txt"]
[null,32,null,"Environmental Working Group (n.d.). Myths on cosmetic safety. Retrieved from http://www.ewg.org/skindeep/myths-on-cosmetics-safety/"]
[null,33,null,"Roggli, V., Oury, T., Sporn, T. (2004). Pathology of Asbestos-associated Diseases (2nd ed.).  New York: Springer-Verlag. "]
[null,34,null,"Godish, T. (2010, May 18). Are you sick from formaldehyde exposure? Retrieved from http://www.healthyhouseinstitute.com/a_786-Are_You_Sick_from_Formaldehyde_Exposure"]
[null,35,null,"Syracuse Research Corporation. (2000). Toxicological profile for polychlorinated biphenyls (PCBs), US department of health and human services, public health service, agency for toxic substances and disease registry. "]
[null,36,null,"WHO, Specifications for pesticides used in public health. (1985). Insecticides-molluscicides-repellents-methods (6th ed.). WHO."]
[null,37,null,"Thornton, J. (2000). Pandora's Poison: Chlorine, Health, and a New Environmental Strategy. Cambridge, MA: MIT Press. Retrieved from http://www.netlibrary.com.foyer.swmed.edu/urlapi.asp?action=summary&v=1&bookid=27242 "]